Cogmind - Beta 14 @@@ ROGUE MODE // 2024.09.10 @ 02:22:58 Player: Zaros426 Result: Destroyed by G-73 Enforcer with Phase Gun Performance ------------- Evolutions (9) 4500 Regions Visited (33) 6600 Robots Destroyed (535) 2675 Value Destroyed (23470) 23470 Prototype IDs (85) 1700 Alien Tech Used (7) 1400 Bonus (26085) 26085 TOTAL SCORE: 66430 Bonus ------- Triggered High Security 500 High Alert Combat Kills 8748 Follower Combat Kills 5712 Entered Garrisons 400 Used RIF Installer 1000 Aligned with FarCom 300 Met Data Miner 300 Met Zhirov 300 Met R17 at Cetus 500 Found Hidden Lab 3000 Used Core Reset Matrix 3000 Met R17 at Research 2000 Pursued by Intercept 1000 Friendly Fire -675 Cogmind --------- Core Integrity 0/1600 Matter 133/300 Energy 98/100 System Corruption 1% Temperature Cool (27) Movement Core (50) Location -1/Access Parts ------- > --- POWER (2) -------- (None) > --- PROPULSION (8) --- (None) > --- UTILITY (10) ----- Experimental Signal Interpreter Improved Target Analyzer > --- WEAPON (6) ------- (None) > --- INVENTORY (5) ---- Light Quantum Reactor Enhanced Nova Cannon Improved Plasma Cutter Force Lance Peak State ------------ > --- POWER ------------ Particle Reactor Particle Reactor > --- PROPULSION ------- Medium Treads Medium Treads Improved Heavy Siege Treads Improved Heavy Siege Treads > --- UTILITY ---------- Coolant Network Huge Storage Unit Experimental Sensor Array Advanced Target Analyzer Core Analyzer Quantum Router LC Capacitor > --- WEAPON ----------- Gamma Rifle Quantum Rifle Warp Cannon Railgun Hardcell Cannon Compact Linear Accelerator > --- INVENTORY -------- Particle Reactor Quantum Reactor Advanced Cryofiber Web Coolant Network Experimental Energy Well Makeshift Trap Scanner Advanced Target Analyzer Advanced Weapon Cycler Advanced Transmission Jammer Layered Heavy Armor Plating Layered Heavy Armor Plating Medium Regenerative Plating Improved Force Field Antimissile System Transdimensional Reconstructor Core Regenerator Quantum Rifle Warp Cannon Advanced Remote Datajack Guided Remote Datajack Improved Plasma Cutter [Rating: 216] Favorites ----------- Power Improved Ion Engine Engine Improved Ion Engine Power Core Light Fission Core Reactor Hybrid Antimatter Reactor Propulsion Light Treads Treads Light Treads Leg Carbon-fiber Leg Wheel Armored Wheel Hover Unit Gyrokinetic Inverter Flight Unit Xenon Bombardment Thruster Utility High-capacity Storage Unit Device Improved Force Field Storage High-capacity Storage Unit Processor Advanced Visual Processing Unit Hackware Relay Coupler [NC] Protection Improved Medium Armor Plating Artifact LC Capacitor Weapon Flak Gun Energy Gun Quantum Rifle Energy Cannon Light EM Pulse Cannon Ballistic Gun Flak Gun Ballistic Cannon Hypervelocity Gauss Cannon Launcher Heavy Shock Bomb Launcher Special Weapon Advanced Remote Datajack Impact Weapon Heavy Hammer Slashing Weapon Chainsword Piercing Weapon Force Lance Special Melee Weapon Datajack Build | -11 -10 -10 -9 -9 -9 -8 -8 -8 -8 -8 -7 -6 -6 -6 -6 -5 -5 -5 -5 -5 -5 -5 -4 -4 -4 -4 -4 -4 -3 -3 -3 -2 -1 ------- Run | Yrd Mat Min Mat Min Exi Min Mat Gar Mat Gar Fac Fac Low Low Dat Pro Fac Was Fac Upp Upp Zhi Pro Fac Ext Cet Arc Hub Res Arm Lab Res Acc Slots Evolved 18 | . . . 2 . . . 2 . . . 2 2 . . . . 2 . . . . . . 2 . . . . 2 . . 2 2 Power . | . . . . . . . . . . . . . . . . . . . . . . . . . . . . . . . . . . Propulsion 6 | . . . . . . . 1 . . . 1 . . . . . 1 . . . . . . 1 . . . . . . . . 2 Utility 8 | . . . . . . . 1 . . . 1 1 . . . . 1 . . . . . . 1 . . . . 2 . . 1 . Weapon 4 | . . . 2 . . . . . . . . 1 . . . . . . . . . . . . . . . . . . . 1 . Parts Attached 766 | 7 16 7 58 9 2 5 5 32 16 8 80 9 15 11 3 30 25 38 2 7 11 10 5 11 27 11 2 19 57 2 17 167 42 Power 54 | 1 1 1 6 . . 1 1 1 . . 6 . 1 3 . 2 2 3 . . 2 2 . 1 1 . . 2 3 . . 14 . Engine 21 | 1 1 1 6 . . 1 1 1 . . 5 . 1 . . 2 . . . . . . . . . . . . . . . 1 . Core 7 | . . . . . . . . . . . 1 . . 3 . . 2 . . . 1 . . . . . . . . . . . . Reactor 26 | . . . . . . . . . . . . . . . . . . 3 . . 1 2 . 1 1 . . 2 3 . . 13 . Propulsion 184 | 2 5 2 20 3 . 1 1 6 4 . 23 4 6 . . 15 8 10 . 1 . 2 . 1 1 . . 2 12 . . 34 21 Treads 92 | 2 3 . 19 3 . 1 1 6 3 . 14 2 . . . 4 . 4 . 1 . 1 . 1 1 . . 2 6 . . 10 8 Leg 37 | . . . . . . . . . . . 9 2 6 . . 6 1 2 . . . . . . . . . . 4 . . 4 3 Wheel 31 | . 2 2 1 . . . . . 1 . . . . . . 5 1 . . . . . . . . . . . . . . 16 3 Hover 12 | . . . . . . . . . . . . . . . . . 5 2 . . . . . . . . . . . . . 3 2 Flight 12 | . . . . . . . . . . . . . . . . . 1 2 . . . 1 . . . . . . 2 . . 1 5 Utility 267 | 2 4 1 7 2 . . 1 4 2 1 29 3 3 4 . 4 12 11 1 . 8 4 . 7 13 8 2 15 31 2 6 65 15 Device 163 | 1 1 1 3 . . . 1 1 1 . 19 . 1 4 . 4 10 7 1 . 4 3 . 4 6 3 2 11 19 2 3 39 12 Storage 15 | 1 2 . 2 . . . . . . . . . . . . . . . . . 1 . . 1 . . . . 3 . . 3 2 Processor 19 | . 1 . . . . . . . . . 3 1 2 . . . . . . . . . . . . . . . 3 . . 8 1 Hackware 7 | . . . . . . . . . 1 1 2 2 . . . . . . . . . . . . . . . . . . 1 . . Protection 62 | . . . 2 2 . . . 3 . . 5 . . . . . 2 4 . . 3 1 . 2 7 5 . 4 6 . 2 14 . Artifact 1 | . . . . . . . . . . . . . . . . . . . . . . . . . . . . . . . . 1 . Weapon 261 | 2 6 3 25 4 2 3 2 21 10 7 22 2 5 4 3 9 3 14 1 6 1 2 5 2 12 3 . . 11 . 11 54 6 Energy Gun 42 | 2 1 . 7 . . . 1 . . . . 1 1 . . 2 . 1 . . . . . . . 1 . . 4 . 4 17 . Energy Cannon 39 | . . 1 6 . 1 . . 2 . 1 4 . 1 2 1 . . . . . . . . . . . . . . . 1 19 . Ballistic Gun 76 | . 2 2 7 4 1 2 . 13 5 3 7 1 1 1 2 2 2 1 . 1 . . 1 . 4 2 . . 2 . 2 8 . Ballistic Cannon 52 | . 1 . 4 . . . . . . . 9 . . 1 . 1 . 11 . 4 1 1 2 2 2 . . . 3 . 4 6 . Launcher 6 | . . . 1 . . . . . . . 1 . 1 . . 1 1 . . . . . . . . . . . 1 . . . . Special Weapon 21 | . . . . . . . . . 2 2 1 . . . . . . 1 1 1 . 1 2 . 6 . . . 1 . . 2 1 Impact Weapon 9 | . 2 . . . . . 1 6 . . . . . . . . . . . . . . . . . . . . . . . . . Slashing Weapon 10 | . . . . . . . . . 3 1 . . 1 . . 3 . . . . . . . . . . . . . . . 2 . Piercing Weapon 5 | . . . . . . . . . . . . . . . . . . . . . . . . . . . . . . . . . 5 Special Melee Weapon 1 | . . . . . . 1 . . . . . . . . . . . . . . . . . . . . . . . . . . . Unidentified Prototypes 25 | . . . 1 . . . 1 . . . . . 1 . . . 1 . . . . 5 . . . 2 . . 5 1 5 3 . Corrupted Parts 5 | . . . . . . 1 . . . . . . 2 . . . . . . . . . . . . . . . . . 1 1 . System Corruption 26 | . . . . . . 2 . . . . . . 20 . . . . . . . . . . . . . . . . . 2 2 . Parts Lost 182 | . 1 4 4 1 . . 1 . 1 . 23 6 2 . . 7 14 . . . . . . . . . . 20 6 . 1 66 25 Power 19 | . . 1 . . . . . . . . 2 1 . . . 1 4 . . . . . . . . . . 2 . . . 8 . Propulsion 69 | . . 1 2 . . . . . 1 . 9 4 . . . 3 2 . . . . . . . . . . 4 1 . 1 23 18 Utility 47 | . 1 1 . . . . . . . . 2 1 . . . 1 4 . . . . . . . . . . 9 5 . . 16 7 Weapon 47 | . . 1 2 1 . . 1 . . . 10 . 2 . . 2 4 . . . . . . . . . . 5 . . . 19 . Highest Loss Streak 25 | . 1 2 3 1 . . 1 . 1 . 5 3 1 . . 3 7 . . . . . . . . . . 15 2 . 1 25 7 To Critical Strikes 3 | . . . . 1 . . . . . . . . . . . . . . . . . . . . . . . 1 . . . . 1 Average Slot Usage (%) 87 | . 96 99 99 99 93 87 85 99 100 96 94 69 77 85 70 97 87 73 83 82 82 83 83 79 79 79 80 76 69 79 74 74 26 Engine 5 | . 14 13 11 11 11 10 9 9 9 9 6 5 3 6 6 10 5 3 . . . . . . . . . . . . . . . Reactor 3 | . . . . . . . . . . . . . . . . . . 7 11 11 10 11 11 10 9 10 10 9 7 9 9 7 . Treads 15 | . 26 15 18 22 22 21 27 27 26 18 20 11 . . . 5 1 10 16 15 16 15 16 15 15 15 15 14 12 18 13 9 4 Leg 3 | . . . . . . . . . . . 8 8 19 25 25 13 2 . . . . . . . . . . . 3 . . . 2 Wheel 1 | . 1 12 3 . . . . . . 9 . . . . . 4 3 . . . . . . . . . . . . . . 2 1 Device 8 | . 9 11 9 . . . 9 8 1 1 7 . . 5 6 11 14 3 5 5 6 10 11 13 13 10 15 13 15 11 10 10 4 Storage 7 | . 14 14 11 11 11 11 9 9 9 9 7 6 6 6 6 6 5 5 5 5 5 5 5 5 5 5 5 5 4 4 4 3 . Processor 5 | . 2 2 . . . . . . . . 7 13 17 14 12 12 9 5 5 5 5 5 5 5 5 5 5 4 7 9 9 11 8 Hackware 1 | . . . . . . . . . 7 7 3 7 4 . . . . . . . . . . . . . . . . . 1 2 . Protection 4 | . . . 1 10 11 11 9 9 9 9 2 . . . . . . 5 11 11 9 5 5 5 6 9 5 6 1 4 4 2 . Energy Gun 2 | . 7 . 6 . . . . . . . . . 5 1 . 5 . 3 . . . . . . . . . . 6 9 6 4 . Energy Cannon 2 | . . 3 9 . 6 11 7 . . 2 1 . 2 3 . 1 . . . . . . . . . . . . . . 1 7 . Ballistic Gun 14 | . 4 24 23 43 31 21 13 29 31 23 11 5 8 9 1 11 11 1 5 8 11 11 7 5 3 4 5 4 1 4 3 3 . Ballistic Cannon 7 | . 5 . 3 . . . . . . . 12 6 . . . 4 3 19 18 18 16 11 18 20 20 20 20 19 3 9 8 4 . Slashing Weapon 1 | . . . . . . . . . 3 5 . . 4 6 6 5 4 . . . . . . . . . . . . . . . . Peak Build Rating 216 | 7 15 13 23 20 35 36 39 46 41 52 55 44 59 62 58 73 90 97 96 105 105 108 110 127 130 139 131 131 168 167 170 216 110 Average Rating 71 | 5 10 12 18 17 27 35 34 34 36 44 44 39 42 54 45 68 74 78 93 98 100 103 105 124 127 128 130 124 123 164 160 165 54 On Entrance 68 | . 7 13 13 20 17 35 36 20 34 41 41 40 36 59 58 58 71 37 91 96 99 102 103 107 127 127 131 131 33 167 166 170 37 Naked Turns . | . . . . . . . . . . . . . . . . . . . . . . . . . . . . . . . . . . Heaviest Build 199 | 15 34 34 74 65 80 80 81 88 74 84 91 68 72 84 80 100 97 127 126 143 146 131 140 153 161 167 160 178 191 190 198 199 9 Greatest Support 210 | 40 40 40 40 40 40 40 60 60 60 40 91 48 65 65 65 65 53 170 170 170 160 160 160 210 210 210 210 210 205 205 205 210 75 Greatest Overweight (x) 60 | 1 2 1 6 1 1 3 1 1 6 6 8 2 2 1 1 9 9 3 . 1 . . . . . . . 19 28 . 1 60 1 Average Overweight (x) . | . . . 1 1 1 1 . . 1 4 . . . . . 5 1 . . . . . . . . . . . . . . 1 . Largest Inventory Capacity 25 | 8 15 15 20 20 20 20 20 20 20 20 20 20 20 20 20 20 20 20 20 20 20 20 20 20 20 20 20 20 25 25 25 25 5 Average Capacity 19 | 7 14 15 18 20 20 20 20 20 20 20 20 20 20 20 20 20 20 20 20 20 20 20 20 20 20 20 20 20 21 25 25 24 5 Most Carried 25 | 3 15 15 20 20 20 20 19 20 20 20 20 18 20 20 20 20 20 20 20 20 20 20 20 20 20 20 20 20 25 25 25 25 5 Average Carried 18 | 1 11 12 18 19 20 19 18 19 19 19 18 16 15 19 20 19 19 18 20 19 19 19 19 19 19 19 20 18 17 24 24 20 4 Final Capacity 25 | 8 15 15 20 20 20 20 20 20 20 20 20 20 20 20 20 20 20 20 20 20 20 20 20 20 20 20 20 20 25 25 25 5 5 Final Carried 25 | 3 15 10 20 20 20 20 18 20 20 20 16 16 20 20 20 20 20 20 20 20 20 20 20 20 20 20 20 11 25 24 25 2 4 Class Distribution -------------------- 19% | Scavenger-Tank 14% | Scavenger-Skirmisher 12% | Gunner 10% | Skirmisher 6% | Mutant 6% | Tank 6% | Scavenger-Gunner 5% | Scavenger-Mutant 3% | Derelict-Tank 3% | Commander-Tank Dominant Class ---------------- Mutant | -10/Materials Mutant | -10/Mines Gunner | -9/Materials Scavenger-Tank | -9/Mines Tank | -9/Exiles Skirmisher | -8/Mines Skirmisher | -8/Materials Scavenger-Skirmisher | -8/Garrison Skirmisher | -8/Materials Skirmisher | -8/Garrison Gunner | -7/Factory Scavenger-Mutant | -6/Factory Scavenger-Mutant | -6/Lower Caves Scavenger-Skirmisher | -6/Lower Caves Scavenger-Mutant | -6/Data Miner Scavenger-Skirmisher | -5/Proximity Caves Scavenger-Skirmisher | -5/Factory Scavenger-Tank | -5/Waste Scavenger-Tank | -5/Factory Scavenger-Tank | -5/Upper Caves Scavenger-Tank | -5/Upper Caves Scavenger-Tank | -5/Zhirov Scavenger-Tank | -4/Proximity Caves Derelict-Tank | -4/Factory Commander-Tank | -4/Extension Tank | -4/Cetus Scavenger-Tank | -4/Archives Scavenger-Tank | -4/Hub_04(d) Scavenger-Gunner | -3/Research Scavenger-Gunner | -3/Armory Hacker-Gunner | -3/Lab Scavenger-Executioner | -2/Research Alien-Mutant | -1/Access Resources | -11 -10 -10 -9 -9 -9 -8 -8 -8 -8 -8 -7 -6 -6 -6 -6 -5 -5 -5 -5 -5 -5 -5 -4 -4 -4 -4 -4 -4 -3 -3 -3 -2 -1 ----------- Run | Yrd Mat Min Mat Min Exi Min Mat Gar Mat Gar Fac Fac Low Low Dat Pro Fac Was Fac Upp Upp Zhi Pro Fac Ext Cet Arc Hub Res Arm Lab Res Acc Matter Collected 22086 | 270 538 318 1850 337 20 7 . 1338 1182 313 3373 206 313 295 . 723 452 550 . 329 191 . 193 550 1987 492 271 1378 1316 . 48 3118 128 Remotely 2632 | . . . . . . . . . . . 1158 . . . . . . . . . . . . 152 . 62 . 841 . . . 419 . Salvage Created 22921 | 167 836 427 2518 221 . 152 81 1144 1039 480 4403 254 176 382 . 641 383 . . 9 . . . 455 1011 165 202 1612 862 . . 5301 . Parts 1023 | 12 39 40 157 23 . 2 6 56 53 28 135 11 10 13 . 30 21 . . . . . . 28 36 2 12 82 29 . . 198 . Haulers Intercepted 18 | . 2 . 3 . . . . . 5 . 2 . . . . . 1 . . . . . . . . . . . 2 . . 3 . Recyclers Shooed 9 | . 2 . 1 . . . . . . . 2 . . . . . . . . . . . . . 2 . . . . . . 2 . Parts Field Recycled . | . . . . . . . . . . . . . . . . . . . . . . . . . . . . . . . . . . Retrieved Matter . | . . . . . . . . . . . . . . . . . . . . . . . . . . . . . . . . . . Parts Self-Destructed 44 | . . . . . . . . . . . . . 3 . . 10 . . . 17 6 . 8 . . . . . . . . . . Prevented 8 | . . . . . . . . . . . . . 4 . . 3 . . . 1 . . . . . . . . . . . . . Kills | -11 -10 -10 -9 -9 -9 -8 -8 -8 -8 -8 -7 -6 -6 -6 -6 -5 -5 -5 -5 -5 -5 -5 -4 -4 -4 -4 -4 -4 -3 -3 -3 -2 -1 ------- Run | Yrd Mat Min Mat Min Exi Min Mat Gar Mat Gar Fac Fac Low Low Dat Pro Fac Was Fac Upp Upp Zhi Pro Fac Ext Cet Arc Hub Res Arm Lab Res Acc Combat Hostiles Destroyed 427 | . 15 13 52 15 . 4 1 33 20 15 89 6 6 . . 12 8 . . . . . . 5 16 6 2 33 13 . 1 62 . Guns 198 | . 9 13 40 15 . . . 28 20 7 17 4 2 . . 6 5 . . . . . . 1 1 . . 7 5 . 1 17 . Cannons 154 | . 5 . 10 . . 1 . . . 1 34 2 . . . 6 2 . . . . . . 4 15 6 2 26 5 . . 35 . AOE 45 | . . . 1 . . 2 1 4 . 7 24 . 4 . . . 1 . . . . . . . . . . . 1 . . . . Classes Destroyed 25 | 3 5 . 6 1 . . . 2 1 . . . 2 1 . 2 . . . . . . . . . . . 1 1 . . . . Worker 26 | 2 . 1 5 . . 1 . . 2 . 7 . . . . . 1 . . . . . . 4 . . . 3 . . . . . Builder 14 | . . . 1 . . . 1 . 2 . 3 . . . . . . . . . . . . 1 2 . . 2 1 . . 1 . Tunneler 5 | 2 . 2 . . . . . . . . . . . . . . . . . . . . . 1 . . . . . . . . . Hauler 18 | . 2 . 3 . . . . . 5 . 2 . . . . . 1 . . . . . . . . . . . 2 . . 3 . Recycler 19 | 1 3 . 3 . . 1 . . 1 . 5 . . . . . . . . . . . . . 1 . . . . . . 4 . Minesweeper 2 | . . . . . . . . . . . . . 1 . . . . . . 1 . . . . . . . . . . . . . Mechanic 9 | . . . 1 . . . . . . . 7 . . . . . . . . . . . . 1 . . . . . . . . . Operator 9 | . 1 . 2 . . . . . . . . 1 . . . . . . . . . . . . 1 . 2 2 . . . . . Drone 2 | . . . . . . . . . . . . . . . . 1 . . . . . . . . . . . . . . . 1 . Watcher 28 | . 3 . 5 . . . . . 3 . 6 . . . . . 1 . . . . . . 1 2 . . 1 . . . 6 . Swarmer 81 | . 5 3 13 14 . 4 . 3 . 12 3 . 4 . . . 5 . . . . . . . . . . 7 3 . . 5 . Cutter 4 | . . . . . . . . 2 . . . . . . . . . . . . . . . . . . . 2 . . . . . Grunt 185 | . 10 10 26 . . 1 . 22 13 3 51 3 2 . . . 1 . . . . . . 5 5 . . 12 2 . . 19 . Brawler 18 | . . . 2 . . . . 1 2 . 9 . . . . . . . . . . . . . 1 . . . . . . 3 . Duelist 11 | . . . 2 . . . . . . . 6 1 . . . . . . . . . . . . . . . . 1 . . 1 . Protector 8 | . . . 2 . . . . . . . 2 . . . . . . . . . . . . . 2 . . . . . . 2 . Researcher 1 | . . . . . . . . . . . . . 1 . . . . . . . . . . . . . . . . . . . . Sentry 35 | . . . 7 . . . 1 4 3 . 8 1 . . . . . . . . . . . . 3 . 2 2 2 . . 2 . Demolisher 3 | . . . . 1 . . . . . . . . . . . . . . . . . . . . 1 . . . 1 . . . . Hunter 20 | . . . . . . . . . 2 . 3 . . . . 2 2 . . . . . . . 3 . . 5 . . . 3 . Programmer 34 | . . . . . . . . 1 . . 7 1 . . . 2 . . . . . . . . 1 . . 4 1 . . 17 . Heavy 1 | . . . . . . . . . . . . . . . . . . . . . . . . . . . . 1 . . . . . Cetus Guard 6 | . . . . . . . . . . . . . . . . . . . . . . . . . . 6 . . . . . . . Tracker 6 | . . . . . . . . . . . . . . . . . . . . . . . . . . . . . . . . 6 . Combat Programmer 4 | . . . . . . . . . . . . . . . . . . . . . . . . . . . . . . . . 4 . Striker 3 | . . . . . . . . . . . . . . . . . . . . . . . . . . . . . 3 . . . . Decomposer 1 | . . . . . . . . . . . . . . 1 . . . . . . . . . . . . . . . . . . . Packrat 3 | . . . . . . . . . . . . . . 2 . 1 . . . . . . . . . . . . . . . . . Samaritan 5 | . . . . . . . . . . . . . . 5 . . . . . . . . . . . . . . . . . . . Thug 5 | . . . . . . . . . . . . . . . . 5 . . . . . . . . . . . . . . . . . Butcher 1 | . . . . . . . . . . . . . . . . 1 . . . . . . . . . . . . . . . . . Mutant 1 | . . . . . . . . . . . . . . . . 1 . . . . . . . . . . . . . . . . . Best Kill Streak 15 | 4 5 3 7 4 . 4 2 3 4 4 12 3 4 . . 3 5 . . 1 . . . 10 5 3 2 15 3 . 1 10 . Combat Bots Only 13 | . 5 3 6 4 . 4 1 3 4 4 8 3 4 . . 3 5 . . . . . . 3 4 3 1 13 3 . 1 8 . Max Kills in Single Turn 6 | 1 2 2 2 1 . 4 2 3 1 4 6 1 1 1 . 1 2 . . 1 . . . 4 2 1 1 3 2 . 1 2 . Gunslinging 1 | . 1 . 1 . . . . 1 . 1 . . . . . . . . . . . . . . . . . . . . . . . Exploded 5 | . . . 1 . . 2 1 3 . 4 5 . 1 . . . 1 . . . . . . . . . . . 1 . . . . Melee . | . . . . . . . . . . . . . . . . . . . . . . . . . . . . . . . . . . Uniques/NPCs Destroyed 1 | . . . . . . . . . . . . . . . . . . . . . . . . . . . . . . . 1 . . A5 (-3/Lab) Combat | -11 -10 -10 -9 -9 -9 -8 -8 -8 -8 -8 -7 -6 -6 -6 -6 -5 -5 -5 -5 -5 -5 -5 -4 -4 -4 -4 -4 -4 -3 -3 -3 -2 -1 -------- Run | Yrd Mat Min Mat Min Exi Min Mat Gar Mat Gar Fac Fac Low Low Dat Pro Fac Was Fac Upp Upp Zhi Pro Fac Ext Cet Arc Hub Res Arm Lab Res Acc Hostile Shots Fired 3270 | . 60 45 130 59 . . 16 79 105 15 504 81 29 5 . 77 100 . . . 8 . . 35 59 28 5 407 151 . 23 768 481 Missed 982 | . 22 9 39 20 . . 6 22 29 3 183 26 14 . . 15 30 . . . 5 . . 4 17 5 2 124 43 . 4 187 173 Damage Taken 41839 | . 435 429 1292 349 . 38 154 876 1198 118 4378 967 211 20 . 1411 1532 . . 15 38 . . 335 539 330 41 4676 3162 . 387 12749 6159 Core 5646 | . 74 91 76 24 . 11 23 147 86 . 472 262 37 . . 200 417 . . . . . . . 22 13 . 370 207 . 12 1483 1619 Absorbed by Shields 4052 | . . . 3 . . . . 46 . . 71 . . . . . 84 . . 15 41 . . 348 566 344 44 1452 . . 105 919 14 Reduced by Siege Mode 937 | . . . . . . . . . . . . . . . . . . . . . 4 . . 33 18 37 . 90 160 . 7 588 . Ignored by Resistances 188 | . . . . . . . . . . . . . . . . . . . . . . . . . . . . . 188 . . . . Regen/Repaired (Parts) 2496 | . . . . . . . . . 531 . . . . . . . . 1636 . 10 21 . . 109 68 . . . . . . 121 . Core Remaining (%) 54 | 100 . 34 . . . 72 . . . 53 32 . . . . 41 . . . . . . 58 . . . . 64 . . 76 17 . Volleys Fired 1099 | 10 47 37 102 23 . 4 1 47 52 17 159 15 12 5 . 35 20 6 3 14 3 3 5 17 85 14 22 68 42 . 27 204 . Largest 6 | 2 2 2 4 4 . 3 2 4 4 4 4 3 3 4 . 4 4 1 2 5 5 1 1 5 5 5 5 5 5 . 5 6 . Hottest 535 | 90 90 83 224 89 . 296 273 306 112 306 326 156 156 186 . 197 197 10 78 219 233 10 10 278 274 274 279 279 344 . 339 535 . Shots Fired 3076 | 20 93 70 358 86 . 6 2 151 186 39 443 32 26 21 . 88 71 6 6 36 15 3 5 60 229 68 34 223 127 . 55 517 . Gun 1697 | 20 62 65 281 86 . 2 1 146 179 30 164 17 17 15 . 59 56 . . 8 6 . . 12 41 15 22 47 81 . 41 224 . Cannon 1280 | . 31 5 75 . . 4 1 5 . 3 267 15 5 6 . 28 15 . 6 20 9 . . 48 151 53 12 176 40 . 14 291 . Launcher 23 | . . . 2 . . . . . . . 11 . 4 . . 1 . . . . . . . . . . . . 5 . . . . Special 76 | . . . . . . . . . 7 6 1 . . . . . . 6 . 8 . 3 5 . 37 . . . 1 . . 2 . Kinetic 2304 | . 46 65 271 86 . 2 1 146 179 30 405 30 12 17 . 59 66 . 6 28 15 . . 60 192 67 34 223 62 . 19 183 . Thermal 499 | 10 9 5 . . . 4 1 5 . 3 26 2 10 4 . 28 5 . . . . . . . . 1 . . 59 . 36 291 . Explosive 18 | . . . 2 . . . . . . . 11 . 4 . . 1 . . . . . . . . . . . . . . . . . Electromagnetic 179 | 10 38 . 85 . . . . . . . . . . . . . . . . . . . . . . . . . 5 . . 41 . Robot Hit Streak 38 | 7 8 8 12 6 . 4 5 13 10 11 21 30 12 3 . 11 6 5 . 12 6 7 12 6 21 17 11 22 11 . 11 38 . Robot Miss Streak 10 | 1 8 4 6 5 . 3 . 8 8 10 8 4 4 6 . 9 6 1 . 3 1 . . 2 4 2 2 4 5 . 1 4 . Penetration Max 2 | . . . . . . . . . . . 1 . . . . . 1 . . . . . . 1 2 1 . 2 . . . 2 . Secondary Targets 28 | . 2 3 6 3 . . . 3 6 2 1 . . . . 1 . . . . . . . . . . . . . . . 1 . Max Gunslinging Chain 2 | . 1 1 2 1 . . . 1 1 2 1 . . . . 1 . . . . . . . . . . . . . . . 1 . Shots Hit Robots 2018 | 14 67 46 195 46 . 2 2 116 158 34 304 27 28 20 . 65 36 5 . 23 9 3 5 34 148 49 25 132 72 . 32 321 . Core Hits 1328 | 6 27 28 105 15 . 8 2 134 152 40 304 29 28 13 . 31 28 . . 1 2 . . 22 59 19 11 64 33 . 12 155 . Critical Kills 65 | . . . 1 . . . . . . . . . . . . . 2 . . . . . . 6 12 4 3 22 1 . . 14 . Critical Parts Destroyed 76 | . . 1 . . . . . 1 . . 2 . . . . 1 . . . 1 1 . . 8 20 5 2 26 . . . 8 . Critical Strikes 231 | 1 . 1 1 . . . . 1 . 2 25 . . . . 1 2 . . 1 2 . . 18 38 16 7 58 14 . 3 40 . Burn 16 | 1 . . . . . . . . . . . . . . . . . . . . . . . . . . . . 6 . 1 8 . Meltdown 11 | . . . . . . . . . . . . . . . . . . . . . . . . . . . . . . . . 11 . Destroy 137 | . . 1 1 . . . . . . . 2 . . . . 1 2 . . 1 2 . . 14 33 11 7 48 1 . . 13 . Blast 62 | . . . . . . . . . . . 23 . . . . . . . . . . . . 4 5 5 . 10 7 . 2 6 . Corrupt 2 | . . . . . . . . . . . . . . . . . . . . . . . . . . . . . . . . 2 . Smash 1 | . . . . . . . . 1 . . . . . . . . . . . . . . . . . . . . . . . . . Sever 2 | . . . . . . . . . . 2 . . . . . . . . . . . . . . . . . . . . . . . Melee Attacks 224 | . 14 . . . . . 3 80 35 30 . . 24 10 . 7 10 . . . . . . . . . . . . . . . 11 Impact 98 | . 14 . . . . . 3 80 1 . . . . . . . . . . . . . . . . . . . . . . . . Slashing 115 | . . . . . . . . . 34 30 . . 24 10 . 7 10 . . . . . . . . . . . . . . . . Piercing 11 | . . . . . . . . . . . . . . . . . . . . . . . . . . . . . . . . . 11 Sneak Attacks 32 | . 7 . . . . . . . 8 . . . 4 10 . 3 . . . . . . . . . . . . . . . . . Combat Hostiles . | . . . . . . . . . . . . . . . . . . . . . . . . . . . . . . . . . . Follow-up Attacks 2 | . 2 . . . . . . . . . . . . . . . . . . . . . . . . . . . . . . . . Damage Inflicted 59025 | 175 1638 776 3903 664 . 222 51 2394 3136 1013 12339 689 1245 899 . 1790 844 . . 222 179 . . 1090 3319 1401 643 3489 2615 . 709 13580 . Guns 23622 | 175 569 747 2271 664 . 17 15 1991 2549 266 2643 400 273 107 . 936 599 . . 38 57 . . 268 749 217 406 1048 1493 . 382 4742 . Cannons 25452 | . 289 . 1154 . . 43 16 55 . 27 5232 289 84 76 . 522 181 . . 184 122 . . 822 2570 1184 237 2441 759 . 327 8838 . Explosions 6388 | . . 29 478 . . 162 20 169 . 174 4464 . 424 . . 47 64 . . . . . . . . . . . 357 . . . . Melee 3554 | . 777 . . . . . . 179 587 546 . . 464 716 . 285 . . . . . . . . . . . . . . . . . Ramming 9 | . 3 . . . . . . . . . . . . . . . . . . . . . . . . . . . 6 . . . . Kinetic 35834 | . 419 747 2225 664 . 17 15 1991 2549 266 7282 633 201 133 . 885 734 . . 222 179 . . 1090 3319 1401 643 3489 1148 . 473 5109 . Thermal 14477 | 101 75 29 286 . . 205 36 224 . 201 3163 56 156 50 . 573 46 . . . . . . . . . . . 1104 . 236 7936 . Explosive 2669 | . . . 192 . . . . . . . 1894 . 424 . . 47 . . . . . . . . . . . . 112 . . . . Electromagnetic 2482 | 74 364 . 1200 . . . . . . . . . . . . . 64 . . . . . . . . . . . 245 . . 535 . Impact 1071 | . 777 . . . . . . 179 115 . . . . . . . . . . . . . . . . . . . . . . . . Slashing 2483 | . . . . . . . . . 472 546 . . 464 716 . 285 . . . . . . . . . . . . . . . . . Piercing . | . . . . . . . . . . . . . . . . . . . . . . . . . . . . . . . . . . Highest Corruption 67 | . 1 1 . . . 2 . . . . 8 . 20 15 9 17 . . . . . . . . 1 1 1 11 7 7 13 67 1 Average Corruption 8 | . 1 1 . . . 2 . . . . 3 . 15 9 9 14 . . . . . . . . 1 1 1 5 6 7 11 17 1 Corruption Purged 16 | . . . . . . . . . . . 4 . 5 6 . . . . . . . . . . . . 1 . . . . . . Corruption Blocked . | . . . . . . . . . . . . . . . . . . . . . . . . . . . . . . . . . . Effects 417 | . 5 7 . . . 1 . . . . 52 . 35 76 4 90 . . . . . . . . 2 5 1 4 23 . 9 103 . Message Errors 100 | . . 3 . . . . . . . . 9 . 14 21 . 22 . . . . . . . . . 1 1 . 6 . 4 19 . Matter Fused 85 | . 1 . . . . 1 . . . . 10 . 6 17 1 24 . . . . . . . . . . . 4 5 . 1 15 . Heat Flow Errors 48 | . 1 2 . . . . . . . . 10 . 3 6 . 12 . . . . . . . . 1 . . . 3 . 2 8 . Energy Discharges 51 | . 1 2 . . . . . . . . 6 . 5 7 1 12 . . . . . . . . . 1 . . 3 . . 13 . Parts Rejected 6 | . . . . . . . . . . . 1 . . . . . . . . . . . . . . . . . . . . 5 . Parts Fused 1 | . . . . . . . . . . . . . . . . . . . . . . . . . . . . . . . . 1 . Data Loss (minor) 43 | . 1 . . . . . . . . . 6 . 2 13 2 8 . . . . . . . . . . . . 1 . . 10 . Data Loss (major) 27 | . . . . . . . . . . . 4 . 2 6 . 5 . . . . . . . . . 1 . . 2 . . 7 . Misfires 19 | . 1 . . . . . . . . . 2 . 2 5 . 4 . . . . . . . . 1 2 . . . . . 2 . Alerts 7 | . . . . . . . . . . . 1 . 1 1 . 1 . . . . . . . . . . . . 1 . . 2 . Misdirections 3 | . . . . . . . . . . . . . . . . . . . . . . . . . . . . . . . . 3 . Weapon Failures 27 | . . . . . . . . . . . 3 . . . . 2 . . . . . . . . . . . . 2 . 2 18 . Overload Shots 1 | . . . . . . . . . . . . . . . . . . . . . . . . . . 1 . . . . . . . Overflow Damage 1233 | . 235 . 56 . . 5 . 26 183 . 112 . 143 41 . 47 . . . 16 . . . 14 4 . . 15 30 . . 306 . Projectiles 490 | . . . 44 . . . . . . . 61 . . . . . . . . 16 . . . 14 4 . . 15 30 . . 306 . Explosions 113 | . . . 12 . . 5 . . . . 51 . 45 . . . . . . . . . . . . . . . . . . . . Melee 630 | . 235 . . . . . . 26 183 . . . 98 41 . 47 . . . . . . . . . . . . . . . . . Knockbacks 129 | . 8 . 1 . . . . . . . 37 2 3 1 . 5 5 . . 2 . . . 7 12 . . 19 3 . 1 23 . Impact 3 | . 3 . . . . . . . . . . . . . . . . . . . . . . . . . . . . . . . . Kinetic 120 | . 5 . 1 . . . . . . . 35 2 3 1 . 5 5 . . 2 . . . 7 12 . . 19 3 . 1 19 . Secondary 6 | . . . . . . . . . . . 2 . . . . . . . . . . . . . . . . . . . . 4 . Self-Inflicted Damage 200 | . . . 99 . . 38 . 25 . . 19 . . . . . 17 . . . . . . . . . . . 2 . . . . Shots 15 | . . . 4 . . 4 . 2 . . 3 . . . . . 1 . . . . . . . . . . . 1 . . . . Rammed 2 | . 1 . . . . . . . . . . . . . . . . . . . . . . . . . . . 1 . . . . Targets Rammed 2 | . 1 . . . . . . . . . . . . . . . . . . . . . . . . . . . 1 . . . . Kicked . | . . . . . . . . . . . . . . . . . . . . . . . . . . . . . . . . . . Crushed . | . . . . . . . . . . . . . . . . . . . . . . . . . . . . . . . . . . Highest Temperature 548 | 210 288 240 318 150 . 296 204 381 199 441 530 80 98 338 . 548 319 . . 267 333 . . 362 495 200 117 356 60 . 205 448 . Average Temperature 100 | 83 80 38 58 63 . 126 116 76 63 105 127 45 47 129 . 127 106 . . 92 116 . . 138 125 148 53 99 35 . 73 120 . Received Heat Transfer 6572 | . 156 255 448 . . . 45 336 603 27 1565 339 54 . . 288 180 . . . 6 . . 60 57 . 4 154 294 . . 1347 354 Effects 31 | . 1 . 2 . . 1 . . . . 14 . . 1 . 4 1 . . . . . . . 4 . . . . . . 3 . Shutdowns 8 | . . . 1 . . . . . . . 2 . . 1 . 1 1 . . . . . . . . . . . . . . 2 . Energy Bleed 9 | . 1 . 1 . . 1 . . . . 3 . . . . . . . . . . . . . 2 . . . . . . 1 . Interference 8 | . . . . . . . . . . . 7 . . . . . . . . . . . . . 1 . . . . . . . . Short Circuit 2 | . . . . . . . . . . . 1 . . . . 1 . . . . . . . . . . . . . . . . . Damage (minor) 2 | . . . . . . . . . . . 1 . . . . 1 . . . . . . . . . . . . . . . . . Damage (major) 1 | . . . . . . . . . . . . . . . . . . . . . . . . . 1 . . . . . . . . Damage (core) 1 | . . . . . . . . . . . . . . . . 1 . . . . . . . . . . . . . . . . . Siege Activations 39 | . . . . . . . . . . . . . . . . . . . . . 1 . . 2 8 3 2 9 5 . 1 8 . Total Turns 575 | . . . . . . . . . . . . . . . . . . . . . 8 . . 30 88 43 14 132 55 . 31 174 . Longest Duration 60 | . . . . . . . . . . . . . . . . . . . . . 8 . . 29 25 25 10 26 20 . 31 60 . Robots Corrupted 7 | . 4 . 1 . . . . 1 . . . . . . . . . . . . . . . . . . . . 1 . . . . Combat Hostiles 4 | . 1 . 1 . . . . 1 . . . . . . . . . . . . . . . . . . . . 1 . . . . Parts Fried 11 | . 3 . 5 . . . . 2 . . . . . . . 1 . . . . . . . . . . . . . . . . . Impact Corruptions 15 | . 10 . . . . . . 2 3 . . . . . . . . . . . . . . . . . . . . . . . . Robots Melted 30 | . . . . . . 1 . . . . 17 . . . . . . . . . . . . . . . . . 1 . . 11 . Combat Hostiles 26 | . . . . . . 1 . . . . 14 . . . . . . . . . . . . . . . . . 1 . . 10 . Parts Melted 87 | 3 . . . . . 1 . 1 . 3 47 . . . . . . . . . . . . . . . . . 3 . . 29 . Heat Transferred 33443 | 370 222 50 300 . . 1280 160 1120 . 1120 16682 125 350 74 . 883 74 . . . . . . . . . . . 2401 . 557 7675 . Parts Sabotaged 9 | . . . . . . . . . . . . . . . . . . . . . . . . . . . . . . . . 9 . Parts Stolen 6 | . . . . . . . . . . . . . 3 3 . . . . . . . . . . . . . . . . . . . Parts Stripped . | . . . . . . . . . . . . . . . . . . . . . . . . . . . . . . . . . . Power Chain Reactions 4 | . . . 3 . . . . . . . . . . . . . . . . . . . . . . . . . 1 . . . . Alert | -11 -10 -10 -9 -9 -9 -8 -8 -8 -8 -8 -7 -6 -6 -6 -6 -5 -5 -5 -5 -5 -5 -5 -4 -4 -4 -4 -4 -4 -3 -3 -3 -2 -1 ------- Run | Yrd Mat Min Mat Min Exi Min Mat Gar Mat Gar Fac Fac Low Low Dat Pro Fac Was Fac Upp Upp Zhi Pro Fac Ext Cet Arc Hub Res Arm Lab Res Acc Peak Influence 2941 | 25 215 222 1157 776 . 172 52 2355 1234 1104 2264 1193 . . . . 328 68 112 . . . . 1642 2941 1923 837 917 469 100 . 1243 1038 Initial 1646 | . 16 37 45 441 . . . 32 1147 668 579 1100 . . . . 150 68 . . . . . 300 730 1646 689 130 351 100 . . 590 Average 683 | 7 111 132 626 436 . 40 28 1022 1074 926 915 1109 . . . . 265 29 62 . . . . 1008 1183 1794 643 485 186 100 . 660 752 Maximum Alert Level 5 | . 1 1 4 3 . . . 5 4 4 5 4 . . . . 1 . . . . . . 5 5 5 3 3 2 . . 4 3 Low Security (%) 21 | 100 89 68 5 . . 100 100 7 . . . . . . . . 12 100 100 . . . . . . . . 5 63 100 . 20 . Level 1 13 | . 10 31 13 41 . . . 17 . . 7 . . . . . 87 . . . . . . 24 . . . 34 27 . . 7 . Level 2 22 | . . . 50 55 . . . 13 . 13 41 . . . . . . . . . . . . 1 17 . 66 43 9 . . 16 34 Level 3 23 | . . . 16 2 . . . 21 65 75 21 28 . . . . . . . . . . . 3 49 . 32 16 . . . 44 65 Level 4 12 | . . . 14 . . . . 17 34 10 13 71 . . . . . . . . . . . 69 10 . . . . . . 11 . Level 5 6 | . . . . . . . . 23 . . 8 . . . . . . . . . . . . 1 21 100 . . . . . . . High Security . | . . . . . . . . . . . 7 . . . . . . . . . . . . . . . . . . . . . . Max Security . | . . . . . . . . . . . . . . . . . . . . . . . . . . . . . . . . . . Sterilizations 1 | . . . 1 . . . . . . . . . . . . . . . . . . . . . . . . . . . . . . Squads Dispatched 133 | . 4 1 10 . . . 2 . 4 . 33 5 . . . . 1 . . . . . . 13 14 . . 10 5 . . 24 7 Investigation 30 | . 2 1 4 . . . 1 . 4 . 7 2 . . . . . . . . . . . 2 4 . . . 1 . . 1 1 Extermination 15 | . . . . . . . . . . . 4 1 . . . . . . . . . . . 1 . . . 2 . . . 6 1 Reinforcement 30 | . 2 . 3 . . . 1 . . . 5 1 . . . . 1 . . . . . . 6 2 . . 4 4 . . 1 . Assault 42 | . . . 3 . . . . . . . 17 1 . . . . . . . . . . . 3 8 . . 1 . . . 7 2 Garrison 4 | . . . . . . . . . . . . . . . . . . . . . . . . 1 . . . 3 . . . . . Intercept 12 | . . . . . . . . . . . . . . . . . . . . . . . . . . . . . . . . 9 3 Searches Triggered 1 | . . . . . . . . . . . . . . . . . . . . . . . . . . . . . . . . . 1 Data Miner Redirects 19 | . . . . . . . . . . . . . . . . . . . . . . . . 3 6 . . 1 . . . 8 1 Construction Impeded 5 | . . . . . . . . . . . 2 1 . . . . . . . . . . . 1 1 . . . . . . . . Haulers Reinforced 7 | . . . . . . . . . . . 2 . . . . . 1 . . . . . . 1 . . . 1 1 . . 1 . Active Scanning Responses . | . . . . . . . . . . . . . . . . . . . . . . . . . . . . . . . . . . Cargo Convoy Interrupts . | . . . . . . . . . . . . . . . . . . . . . . . . . . . . . . . . . . Stealth | -11 -10 -10 -9 -9 -9 -8 -8 -8 -8 -8 -7 -6 -6 -6 -6 -5 -5 -5 -5 -5 -5 -5 -4 -4 -4 -4 -4 -4 -3 -3 -3 -2 -1 --------- Run | Yrd Mat Min Mat Min Exi Min Mat Gar Mat Gar Fac Fac Low Low Dat Pro Fac Was Fac Upp Upp Zhi Pro Fac Ext Cet Arc Hub Res Arm Lab Res Acc Distress Signals 28 | . . . 3 . . . 4 . 4 . 2 . . . . . . . . . . . . 1 1 2 . 3 5 . . 1 2 Communications Jammed 61 | . . . . . . . . . . . . . . . . . . . . . . . . . . . . . . . . 61 . Distress Signals 60 | . . . . . . . . . . . . . . . . . . . . . . . . . . . . . . . . 60 . Times Spotted 760 | . 26 14 64 16 . . 6 32 27 9 143 10 14 3 . 11 16 . 1 6 5 . 2 20 65 11 13 51 23 . 1 104 67 Peak Tracking Total 19 | . 4 3 5 4 . . 6 5 4 4 13 6 4 3 . 3 3 . 1 2 3 . 1 4 16 5 1 8 4 . 1 10 19 Tactical Retreats 39 | . 1 1 6 2 . . . 4 . . 2 . 1 . . . 3 . . . . . . 1 2 . . 1 . . . 3 12 Traps | -11 -10 -10 -9 -9 -9 -8 -8 -8 -8 -8 -7 -6 -6 -6 -6 -5 -5 -5 -5 -5 -5 -5 -4 -4 -4 -4 -4 -4 -3 -3 -3 -2 -1 ------- Run | Yrd Mat Min Mat Min Exi Min Mat Gar Mat Gar Fac Fac Low Low Dat Pro Fac Was Fac Upp Upp Zhi Pro Fac Ext Cet Arc Hub Res Arm Lab Res Acc Traps Triggered 32 | . 1 . . . . . . 15 1 1 5 . . . . . 1 . . . . . . . 1 . . . 1 . . 3 3 Indirectly . | . . . . . . . . . . . . . . . . . . . . . . . . . . . . . . . . . . Trap Hack Attempts . | . . . . . . . . . . . . . . . . . . . . . . . . . . . . . . . . . . Triggered . | . . . . . . . . . . . . . . . . . . . . . . . . . . . . . . . . . . Disarmed . | . . . . . . . . . . . . . . . . . . . . . . . . . . . . . . . . . . Reprogrammed . | . . . . . . . . . . . . . . . . . . . . . . . . . . . . . . . . . . Reused 4 | . . . . . . . . . . . . 1 2 . . 1 . . . . . . . . . . . . . . . . . Traps Extracted . | . . . . . . . . . . . . . . . . . . . . . . . . . . . . . . . . . . Installed 9 | . . . . . . . . 1 . . 2 1 2 2 . 1 . . . . . . . . . . . . . . . . . Triggered 5 | . . . . . . . . . . . . 1 2 . . 1 . . . 1 . . . . . . . . . . . . . Most Traps Carried 7 | . . . . 4 4 4 4 4 3 3 3 1 7 5 2 2 . . . . . . . . . . . . . . . . . Machines | -11 -10 -10 -9 -9 -9 -8 -8 -8 -8 -8 -7 -6 -6 -6 -6 -5 -5 -5 -5 -5 -5 -5 -4 -4 -4 -4 -4 -4 -3 -3 -3 -2 -1 ---------- Run | Yrd Mat Min Mat Min Exi Min Mat Gar Mat Gar Fac Fac Low Low Dat Pro Fac Was Fac Upp Upp Zhi Pro Fac Ext Cet Arc Hub Res Arm Lab Res Acc Machines Disabled 70 | . . 7 6 . . 3 . 3 . 1 6 . . . . . 3 . 4 1 . . . 3 9 2 4 7 3 . 4 4 . Max in Single Turn 6 | . . 6 1 . . 2 . 1 . 1 1 . . . . . 1 . 1 . . . . . 1 1 1 2 1 . 2 1 . Garrison Access 2 | . . . . . . . . . . . . . . . . . . . . . . . . 1 . . . . . . . 1 . Garrison Relay 4 | . . . . . . . . 3 . 1 . . . . . . . . . . . . . . . . . . . . . . . Energy Cycler 1 | . . . . . . . . . . . . . . . . . . . . . . . . . . . . . . . . . 1 Machines Repaired . | . . . . . . . . . . . . . . . . . . . . . . . . . . . . . . . . . . Machines Dismantled 7 | . . . . . . . . . . . . . . . . . . . 4 . . . . . 3 . . . . . . . . Machines Sabotaged . | . . . . . . . . . . . . . . . . . . . . . . . . . . . . . . . . . . Overloaded Fab Kills . | . . . . . . . . . . . . . . . . . . . . . . . . . . . . . . . . . . Hacking | -11 -10 -10 -9 -9 -9 -8 -8 -8 -8 -8 -7 -6 -6 -6 -6 -5 -5 -5 -5 -5 -5 -5 -4 -4 -4 -4 -4 -4 -3 -3 -3 -2 -1 --------- Run | Yrd Mat Min Mat Min Exi Min Mat Gar Mat Gar Fac Fac Low Low Dat Pro Fac Was Fac Upp Upp Zhi Pro Fac Ext Cet Arc Hub Res Arm Lab Res Acc Machines Accessed 103 | . 7 1 11 . 2 . 3 4 6 1 14 4 . . 4 . 2 . 1 . 1 9 . 5 6 3 . 3 1 . 3 8 4 Terminals 60 | . 5 1 8 . . . 2 4 5 1 8 4 . . . . 2 . . . 1 . . 1 5 3 . 3 . . . 6 1 Fabricators 6 | . . . . . . . . . . . 2 . . . . . . . . . . . . 1 . . . . 1 . . 1 1 Repair Stations 1 | . . . . . . . . . . . . . . . . . . . 1 . . . . . . . . . . . . . . Recycling Units 9 | . 2 . 2 . . . . . . . 3 . . . . . . . . . . . . 1 1 . . . . . . . . Scanalyzers 4 | . . . 1 . . . . . . . 1 . . . . . . . . . . . . 1 . . . . . . . 1 . Garrison Access 5 | . . . . . . . 1 . 1 . . . . . . . . . . . . . . 1 . . . . . . . . 2 Total Hacks 343 | . 25 5 41 . 24 . 6 7 14 1 31 10 . . 25 . 6 . 2 . 1 48 . 15 14 6 . 4 2 . 23 23 10 Successful 218 | . 11 2 26 . 24 . 3 3 5 1 14 2 . . 25 . 2 . 1 . 1 48 . 7 5 3 . 3 . . 23 8 1 Failed 125 | . 14 3 15 . . . 3 4 9 . 17 8 . . . . 4 . 1 . . . . 8 9 3 . 1 2 . . 15 9 Catastrophic 23 | . . 1 . . . . . 2 1 . 4 3 . . . . . . 1 . . . . 1 2 1 . 1 . . . 5 1 Database Lockouts . | . . . . . . . . . . . . . . . . . . . . . . . . . . . . . . . . . . Manual 84 | . 19 4 19 . 1 . 5 . 6 . 7 4 . . . . . . . . . . . 6 5 . . . . . . 8 . Terminals 161 | . 22 5 27 . . . 5 7 13 1 16 10 . . . . 6 . . . 1 . . 5 11 6 . 4 . . . 18 4 Fabricators 16 | . . . . . . . . . . . 6 . . . . . . . . . . . . 3 . . . . 2 . . 3 2 Repair Stations 2 | . . . . . . . . . . . . . . . . . . . 2 . . . . . . . . . . . . . . Recycling Units 16 | . 3 . 2 . . . . . . . 6 . . . . . . . . . . . . 2 3 . . . . . . . . Scanalyzers 19 | . . . 12 . . . . . . . 3 . . . . . . . . . . . . 2 . . . . . . . 2 . Garrison Access 9 | . . . . . . . 1 . 1 . . . . . . . . . . . . . . 3 . . . . . . . . 4 Terminal Hacks 171 | . 3 2 7 . 24 . 2 3 4 1 5 2 . . 25 . 2 . . . 1 48 . 2 5 3 . 3 . . 23 6 . Record 106 | . . 1 . . 23 . . . 1 . 2 1 . . 11 . . . . . 1 36 . 2 2 3 . . . . 22 1 . Part Schematic 12 | . . . . . . . . . . . . . . . 8 . . . . . . 4 . . . . . . . . . . . Robot Schematic 5 | . . . . . . . 1 . . . . 1 . . 3 . . . . . . . . . . . . . . . . . . Robot Analysis 12 | . . 1 5 . . . 1 . 1 . . . . . . . . . . . . 4 . . . . . . . . . . . Prototype ID Bank 9 | . . . . . . . . . . . . . . . 3 . . . . . . 4 . . . . . . . . . 2 . Open Door 2 | . . . . . . . . 1 . . . . . . . . . . . . . . . . 1 . . . . . . . . Branch Access Points 1 | . . . . . . . . . . . . . . . . . 1 . . . . . . . . . . . . . . . . Emergency Access Points 1 | . . . . . . . . . . . . . . . . . . . . . . . . . . . . . . . . 1 . Terminal Index 1 | . . . . . . . . . . . . . . . . . . . . . . . . . . . . . . . . 1 . Unreport Threat 4 | . 2 . . . . . . . . . 1 . . . . . . . . . . . . . 1 . . . . . . . . Locate Traps 8 | . 1 . 1 . . . . . 1 . 1 . . . . . . . . . . . . . . . . 3 . . . 1 . Patrol Status 1 | . . . . . . . . . . . . . . . . . 1 . . . . . . . . . . . . . . . . Recall Investigation 1 | . . . . . . . . . . . 1 . . . . . . . . . . . . . . . . . . . . . . Zone Layout 3 | . . . 1 . . . . . 1 . . . . . . . . . . . . . . . 1 . . . . . . . . Garrison Registry 2 | . . . . . . . . 1 . 1 . . . . . . . . . . . . . . . . . . . . . . . Security Stations 1 | . . . . . . . . 1 . . . . . . . . . . . . . . . . . . . . . . . . . Derelict Proto ID Bank 1 | . . . . . 1 . . . . . . . . . . . . . . . . . . . . . . . . . . . . Release Object 1 | . . . . . . . . . . . . . . . . . . . . . . . . . . . . . . . 1 . . Fabricator Hacks 6 | . . . . . . . . . . . 4 . . . . . . . . . . . . 1 . . . . . . . 1 . Network Status 1 | . . . . . . . . . . . . . . . . . . . . . . . . . . . . . . . . 1 . Load Schematic 3 | . . . . . . . . . . . 2 . . . . . . . . . . . . 1 . . . . . . . . . Build 2 | . . . . . . . . . . . 2 . . . . . . . . . . . . . . . . . . . . . . Repair Station Hacks 1 | . . . . . . . . . . . . . . . . . . . 1 . . . . . . . . . . . . . . Scan Component 1 | . . . . . . . . . . . . . . . . . . . 1 . . . . . . . . . . . . . . Recycling Unit Hacks . | . . . . . . . . . . . . . . . . . . . . . . . . . . . . . . . . . . Scanalyzer 14 | . . . 11 . . . . . . . 2 . . . . . . . . . . . . 1 . . . . . . . . . Insert Component 7 | . . . 5 . . . . . . . 1 . . . . . . . . . . . . 1 . . . . . . . . . Analyze 7 | . . . 6 . . . . . . . 1 . . . . . . . . . . . . . . . . . . . . . . Garrison Access Hacks 4 | . . . . . . . 1 . 1 . . . . . . . . . . . . . . 1 . . . . . . . . 1 Unlock Access 3 | . . . . . . . 1 . 1 . . . . . . . . . . . . . . . . . . . . . . . 1 Coupler Status 1 | . . . . . . . . . . . . . . . . . . . . . . . . 1 . . . . . . . . . Unauthorized Hacks 22 | . 8 . 8 . . . . . . . 3 . . . . . . . . . . . . 2 . . . . . . . 1 . Terminals 12 | . 6 . 6 . . . . . . . . . . . . . . . . . . . . . . . . . . . . . . Assimilate 1 | . 1 . . . . . . . . . . . . . . . . . . . . . . . . . . . . . . . . Skim 11 | . 5 . 6 . . . . . . . . . . . . . . . . . . . . . . . . . . . . . . Fabricators 1 | . . . . . . . . . . . . . . . . . . . . . . . . . . . . . . . . 1 . Report 1 | . . . . . . . . . . . . . . . . . . . . . . . . . . . . . . . . 1 . Repair Stations . | . . . . . . . . . . . . . . . . . . . . . . . . . . . . . . . . . . Recycling Units 8 | . 2 . 2 . . . . . . . 3 . . . . . . . . . . . . 1 . . . . . . . . . Tunnel 8 | . 2 . 2 . . . . . . . 3 . . . . . . . . . . . . 1 . . . . . . . . . Scanalyzers . | . . . . . . . . . . . . . . . . . . . . . . . . . . . . . . . . . . Garrison Access 1 | . . . . . . . . . . . . . . . . . . . . . . . . 1 . . . . . . . . . Reprogram 1 | . . . . . . . . . . . . . . . . . . . . . . . . 1 . . . . . . . . . Data Cores Recovered 1 | . . . . . . . . . . . . 1 . . . . . . . . . . . . . . . . . . . . . Used 1 | . . . . . . . . . . . . 1 . . . . . . . . . . . . . . . . . . . . . Hacking Detections 73 | . 5 1 9 . . . 2 2 5 . 13 4 . . . . 2 . 1 . 1 . . 5 5 3 . 3 1 . . 7 4 Full Trace Events 18 | . . 1 2 . . . 1 1 3 . 4 2 . . . . . . . . . . . 1 2 . . . . . . . 1 Feedback Events 1 | . . . . . . . . . . . . . . . . . . . . . . . . . 1 . . . . . . . . Corruption 1 | . . . . . . . . . . . . . . . . . . . . . . . . . 1 . . . . . . . . Feedback Blocked . | . . . . . . . . . . . . . . . . . . . . . . . . . . . . . . . . . . Robot Schematics Acquired 5 | . . . . . . . 1 . . . . 1 . . 3 . . . . . . . . . . . . . . . . . . Robots Built 2 | . . . . . . . . . . . 2 . . . . . . . . . . . . . . . . . . . . . . Authchips . | . . . . . . . . . . . . . . . . . . . . . . . . . . . . . . . . . . Time 162 | . . . . . . . . . . . 162 . . . . . . . . . . . . . . . . . . . . . . Total Robot Build Rating 2 | . . . . . . . . . . . 2 . . . . . . . . . . . . . . . . . . . . . . Part Schematics Acquired 17 | . . . 5 . . . . . . . . . . . 8 . . . . . . 4 . . . . . . . . . . . Parts Built . | . . . . . . . . . . . . . . . . . . . . . . . . . . . . . . . . . . Authchips . | . . . . . . . . . . . . . . . . . . . . . . . . . . . . . . . . . . Time . | . . . . . . . . . . . . . . . . . . . . . . . . . . . . . . . . . . Total Part Build Rating . | . . . . . . . . . . . . . . . . . . . . . . . . . . . . . . . . . . Parts Repaired . | . . . . . . . . . . . . . . . . . . . . . . . . . . . . . . . . . . Time . | . . . . . . . . . . . . . . . . . . . . . . . . . . . . . . . . . . Parts Recycled . | . . . . . . . . . . . . . . . . . . . . . . . . . . . . . . . . . . Recycled Matter . | . . . . . . . . . . . . . . . . . . . . . . . . . . . . . . . . . . Retrieved Matter . | . . . . . . . . . . . . . . . . . . . . . . . . . . . . . . . . . . Retrieved Components . | . . . . . . . . . . . . . . . . . . . . . . . . . . . . . . . . . . Parts Scanalyzed 7 | . . . 5 . . . . . . . 1 . . . . . . . . . . . . 1 . . . . . . . . . Part Schematics Acquired 5 | . . . 5 . . . . . . . . . . . . . . . . . . . . . . . . . . . . . . Parts Damaged . | . . . . . . . . . . . . . . . . . . . . . . . . . . . . . . . . . . Bothacking | -11 -10 -10 -9 -9 -9 -8 -8 -8 -8 -8 -7 -6 -6 -6 -6 -5 -5 -5 -5 -5 -5 -5 -4 -4 -4 -4 -4 -4 -3 -3 -3 -2 -1 ------------ Run | Yrd Mat Min Mat Min Exi Min Mat Gar Mat Gar Fac Fac Low Low Dat Pro Fac Was Fac Upp Upp Zhi Pro Fac Ext Cet Arc Hub Res Arm Lab Res Acc Used RIF Installer 2 | . . . . . . . . 1 . 1 . . . . . . . . . . . . . . . . . . . . . . . Hotswap 1 | . . . . . . . . . . 1 . . . . . . . . . . . . . . . . . . . . . . . Robots Hacked 18 | . . . . . . . . . 2 1 1 . . . . . . 4 . . . 3 1 . 4 . . . 1 . . 1 . Non-combat 3 | . . . . . . . . . 2 . . . . . . . . 1 . . . . . . . . . . . . . . . Combat 15 | . . . . . . . . . . 1 1 . . . . . . 3 . . . 3 1 . 4 . . . 1 . . 1 . Robot Hacks Applied 21 | . . . . . . . . . 3 1 1 . . . . . . 6 . . . 3 1 . 4 . . . 1 . . 1 . parse_system 16 | . . . . . . . . . . . . . . . . . . 6 . . . 3 1 . 4 . . . 1 . . 1 . purge_threat 1 | . . . . . . . . . 1 . . . . . . . . . . . . . . . . . . . . . . . . streamctrl_high 1 | . . . . . . . . . . . 1 . . . . . . . . . . . . . . . . . . . . . . formatsys_low 2 | . . . . . . . . . 2 . . . . . . . . . . . . . . . . . . . . . . . . formatsys_high 1 | . . . . . . . . . . 1 . . . . . . . . . . . . . . . . . . . . . . . Relay Couplers Released 25 | . . . . . . . . 16 . 5 . . . . . . . . . . . . . 2 . . . . . . . 2 . Machine Destruction 21 | . . . . . . . . 12 . 5 . . . . . . . . . . . . . 2 . . . . . . . 2 . Programmers 4 | . . . . . . . . 4 . . . . . . . . . . . . . . . . . . . . . . . . . Attached 2 | . . . . . . . . . 1 1 . . . . . . . . . . . . . . . . . . . . . . . Fabnet Peak Effective % . | . . . . . . . . . . . . . . . . . . . . . . . . . . . . . . . . . . Robots Rewired 19 | . . . . . . . . . . 3 . . . . . . . . . 1 . . 2 . 13 . . . . . . . . Allies Hacked . | . . . . . . . . . . . . . . . . . . . . . . . . . . . . . . . . . . Hacks Repelled . | . . . . . . . . . . . . . . . . . . . . . . . . . . . . . . . . . . Allies | -11 -10 -10 -9 -9 -9 -8 -8 -8 -8 -8 -7 -6 -6 -6 -6 -5 -5 -5 -5 -5 -5 -5 -4 -4 -4 -4 -4 -4 -3 -3 -3 -2 -1 -------- Run | Yrd Mat Min Mat Min Exi Min Mat Gar Mat Gar Fac Fac Low Low Dat Pro Fac Was Fac Upp Upp Zhi Pro Fac Ext Cet Arc Hub Res Arm Lab Res Acc Total Allies 84 | . . 2 . 4 . . . 1 2 4 3 . . . . . . 20 . 1 . . 2 . 24 . . . . . . 8 13 Largest Group 22 | . . 2 . 4 2 2 1 1 2 3 3 . . . . . . 20 20 20 20 20 22 21 21 5 2 1 . . . 8 7 Highest-Rated Group 1036 | . . 49 . 71 24 24 8 20 24 48 48 . . . . . . 793 792 775 775 775 871 844 1036 215 99 48 . . . 114 102 Highest-Rated Ally 159 | . . 31 . 31 16 16 8 20 14 16 32 . . . . . . 50 50 50 50 50 50 50 159 51 51 48 . . . 15 15 Total Orders 40 | . . . . . . . . . 21 . 2 . . . . . . . . . . . . 2 14 . . . . . . 1 . STAY 14 | . . . . . . . . . 8 . 1 . . . . . . . . . . . . . 5 . . . . . . . . FOLLOW 15 | . . . . . . . . . 7 . . . . . . . . . . . . . . . 8 . . . . . . . . GUARD 2 | . . . . . . . . . . . . . . . . . . . . . . . . 1 1 . . . . . . . . AID 7 | . . . . . . . . . 6 . 1 . . . . . . . . . . . . . . . . . . . . . . EXPLORE 1 | . . . . . . . . . . . . . . . . . . . . . . . . . . . . . . . . 1 . RETURN 1 | . . . . . . . . . . . . . . . . . . . . . . . . 1 . . . . . . . . . Ally Attacks 830 | . . 7 . 8 . . 3 1 . 1 25 . . . . . . . 7 28 66 . 30 206 323 35 4 1 . . . 43 42 Total Damage 25796 | . . 82 . 70 . . 33 50 . 31 373 . . . . . . . 180 1507 2373 . 2461 6934 9253 517 86 52 . . . 1056 738 Kills 156 | . . . . 1 . . . 1 . . 4 . . . . . . . 1 12 14 . 14 35 60 5 2 . . . . 5 2 Allies Corrupted 2 | . . . . . . . . . . . . . . . . . . . . . . . . . . . . . . . . 2 . Allies Melted 1 | . . . . . . . . . . . . . . . . . . . . . . . . . 1 . . . . . . . . Intel | -11 -10 -10 -9 -9 -9 -8 -8 -8 -8 -8 -7 -6 -6 -6 -6 -5 -5 -5 -5 -5 -5 -5 -4 -4 -4 -4 -4 -4 -3 -3 -3 -2 -1 ------- Run | Yrd Mat Min Mat Min Exi Min Mat Gar Mat Gar Fac Fac Low Low Dat Pro Fac Was Fac Upp Upp Zhi Pro Fac Ext Cet Arc Hub Res Arm Lab Res Acc Robot Analysis Total 11 | . . 1 5 . . . . . 1 . . . . . . . . . . . . 4 . . . . . . . . . . . Derelict Logs Recovered 16 | . . 3 . 1 . . . . . . . . 2 3 . 2 . . . 2 1 . 2 . . . . . . . . . . Drone Launches 14 | . . . . . . . . . . . . . . . . . . . . . . . . 3 . . . 2 2 . . 7 . Drone Recoveries 9 | . . . . . . . . . . . . . . . . . . . . . . . . 3 . . . 1 1 . . 4 . Exploration | -11 -10 -10 -9 -9 -9 -8 -8 -8 -8 -8 -7 -6 -6 -6 -6 -5 -5 -5 -5 -5 -5 -5 -4 -4 -4 -4 -4 -4 -3 -3 -3 -2 -1 ------------- Run | Yrd Mat Min Mat Min Exi Min Mat Gar Mat Gar Fac Fac Low Low Dat Pro Fac Was Fac Upp Upp Zhi Pro Fac Ext Cet Arc Hub Res Arm Lab Res Acc Turns Passed 46670 | 160 1386 908 3499 2062 685 1266 181 3529 2476 723 3632 559 1310 2008 131 2269 706 930 260 1494 1852 358 1903 857 2334 520 1211 839 2186 18 1169 2703 546 Spaces Moved 21221 | 70 741 583 1325 795 284 493 66 1241 866 283 1442 210 650 1193 99 1037 452 463 119 886 1087 199 1144 461 1167 247 114 268 991 8 495 987 755 Core 643 | 3 . . . . . . . . . . . . . . . . . . . . . . . . . . . 2 1 . . 21 616 Treads 14726 | 67 664 242 953 795 284 493 66 1241 777 78 1143 174 . . . 48 1 292 119 886 1087 199 1144 461 1167 247 114 266 710 8 495 504 1 Legs 2930 | . . . . . . . . . . . 299 36 650 1193 99 209 . 81 . . . . . . . . . . 280 . . 53 30 Wheels 2246 | . 77 341 372 . . . . . 89 205 . . . . . 780 118 . . . . . . . . . . . . . . 258 6 Hover 604 | . . . . . . . . . . . . . . . . . 333 90 . . . . . . . . . . . . . 150 31 Flight 72 | . . . . . . . . . . . . . . . . . . . . . . . . . . . . . . . . 1 71 Fastest Speed 37 | 50 105 105 105 240 240 240 160 160 165 165 160 160 122 122 122 170 58 98 160 160 163 160 163 160 160 160 160 160 165 172 172 50 37 Average Speed 179 | 156 155 128 208 240 240 240 224 239 236 196 180 230 173 160 127 198 110 144 160 162 163 162 163 160 160 160 160 170 191 172 211 179 53 Slowest Speed 3050 | 160 160 240 240 240 240 400 240 240 250 250 680 270 270 192 192 400 400 210 160 240 163 163 163 160 160 160 160 1000 1450 172 259 3050 145 Overloaded Moves . | . . . . . . . . . . . . . . . . . . . . . . . . . . . . . . . . . . Propulsion Burnouts . | . . . . . . . . . . . . . . . . . . . . . . . . . . . . . . . . . . Robots Hopped . | . . . . . . . . . . . . . . . . . . . . . . . . . . . . . . . . . . Cave-ins Triggered . | . . . . . . . . . . . . . . . . . . . . . . . . . . . . . . . . . . Teleports 2 | . . . . . . . . . . . . . . . . . . . . . . . . . . . . . . 1 . 1 . Exploration Rate (%) 61 | 6 95 98 87 99 69 96 13 96 62 41 36 6 88 98 74 87 14 97 4 99 98 62 98 16 90 83 86 33 21 1 99 28 26 Regions Visited 33 Branch Regions 18 Pre-discovered Areas 21 | . 4 3 4 . 1 . . . . . 3 . . . 1 . . . . . . 3 1 1 . . . . . . . . . Known Exits Taken 10 | . . . . . . 1 1 . 1 . . . . 1 . 1 . . 1 1 . . . 1 . . . . 1 . . 1 . Unknown Exits Taken 19 | 1 1 1 1 1 1 . . . . . 1 1 1 . 1 . . . . . 1 1 1 . 1 1 1 1 . 1 1 . . Scrap Searched 23 | . . 1 . 3 . 1 . . . . . . 4 5 . 2 . . . 3 3 . 1 . . . . . . . . . . Spaces Dug 116 | . . . . . . . 3 33 27 6 . . 14 . . . 10 . . . 1 . . 1 . . . 2 1 . . 11 7 Terrain Destroyed 588 | . . 18 39 . . 35 7 33 27 6 180 2 34 2 . 14 11 . . . 2 . . 8 26 3 2 36 29 . . 67 7 Melee 100 | . . . . . . . 3 33 27 6 . . 14 . . . 10 . . . . . . . . . . . . . . . 7 Projectile 242 | . . . 3 . . 1 . . . . 64 2 1 2 . 8 1 . . . 2 . . 8 26 3 2 35 17 . . 67 . AOE 245 | . . 18 36 . . 34 4 . . . 116 . 19 . . 6 . . . . . . . . . . . . 12 . . . . Terrain Rammed . | . . . . . . . . . . . . . . . . . . . . . . . . . . . . . . . . . . Walls Destroyed . | . . . . . . . . . . . . . . . . . . . . . . . . . . . . . . . . . . Machines Disabled . | . . . . . . . . . . . . . . . . . . . . . . . . . . . . . . . . . . Actions | -11 -10 -10 -9 -9 -9 -8 -8 -8 -8 -8 -7 -6 -6 -6 -6 -5 -5 -5 -5 -5 -5 -5 -4 -4 -4 -4 -4 -4 -3 -3 -3 -2 -1 --------- Run | Yrd Mat Min Mat Min Exi Min Mat Gar Mat Gar Fac Fac Low Low Dat Pro Fac Was Fac Upp Upp Zhi Pro Fac Ext Cet Arc Hub Res Arm Lab Res Acc Total 27331 | 97 863 673 1851 902 290 569 92 1552 1120 380 2153 257 775 1271 104 1169 609 725 158 925 1160 232 1181 543 1490 336 1115 493 1196 12 577 1592 869 Wait 3184 | 8 7 46 288 62 . 64 14 102 141 26 402 12 45 27 . 32 56 169 9 14 47 10 25 43 173 49 976 136 43 . 6 133 19 Move 21191 | 69 740 582 1324 794 283 492 66 1240 866 282 1441 209 649 1192 98 1036 452 462 118 885 1086 198 1143 460 1166 246 113 267 990 7 494 986 755 Hop . | . . . . . . . . . . . . . . . . . . . . . . . . . . . . . . . . . . Pick Up 280 | 3 23 . 29 6 1 2 . 7 5 4 34 5 19 9 . 9 17 15 1 1 2 1 1 4 4 7 . 1 25 . 8 26 11 Fast Attach 335 | 7 5 . 21 3 2 3 1 10 2 1 21 4 4 5 3 17 14 19 . 3 6 9 1 2 4 3 2 1 40 2 16 76 28 Attach 203 | . 3 4 8 1 . 1 4 3 1 3 32 4 11 5 . 5 8 6 . . . . . 2 . 3 . 10 10 1 1 63 14 Detach 74 | . 1 . 3 . . . 1 4 . . 9 2 4 2 . 1 3 . . . . . . 2 1 . . 1 8 . . 22 10 Swap 235 | . 8 3 29 5 . 1 . 19 13 4 27 1 1 1 . 8 3 13 2 4 5 2 4 7 23 5 . 8 7 . 2 30 . Drop 414 | . 17 1 47 8 4 2 2 19 5 5 26 4 4 13 3 18 26 34 1 4 11 9 2 6 10 9 2 1 30 2 23 51 15 Fire 1099 | 10 47 37 102 23 . 4 1 47 52 17 159 15 12 5 . 35 20 6 3 14 3 3 5 17 85 14 22 68 42 . 27 204 . Melee 221 | . 11 . . . . . 3 80 35 30 . . 24 10 . 7 10 . . . . . . . . . . . . . . . 11 Ram . | . . . . . . . . . . . . . . . . . . . . . . . . . . . . . . . . . . Kick . | . . . . . . . . . . . . . . . . . . . . . . . . . . . . . . . . . . Crush 2 | . 1 . . . . . . . . . . . . . . . . . . . . . . . . . . . 1 . . . . Escape Stasis 31 | . . . . . . . . 20 . 8 . . . . . . . . . . . . . . . . . . . . . . 3 Rewire 1 | . . . . . . . . . . . . . . . . . . 1 . . . . . . . . . . . . . . . Trap 9 | . . . . . . . . 1 . . 2 1 2 2 . 1 . . . . . . . . . . . . . . . . . Miscellaneous 52 | . . . . . . . . . . . . . . . . . . . 24 . . . . . 24 . . . . . . 1 3 Route ------- -11/Scrapyard -10/Materials (discovered 5 exits: *Mat x3 / *Min / Sub) -10/Mines (discovered 2 exits: *Mat x2) -9/Materials (discovered 4 exits: *Mat x3 / [*Min]) -9/Mines (discovered 4 exits: *Mat x2 / *Exi / [*Zio]) -9/Exiles (discovered 2 exits: [*Min x2]) -8/Mines (discovered 2 exits: *Mat x2) -8/Materials (discovered 5 exits: Fac x3 / Sto / Gar) -8/Garrison (discovered 4 exits: *Mat x4) -8/Materials (discovered 4 exits: *Fac x2 / *Sto / Gar) -8/Garrison (discovered 4 exits: *Fac x3 / [*Mat]) -7/Factory -6/Factory -6/Lower Caves -6/Lower Caves (discovered 2 exits: *Fac / *Dat) -6/Data Miner -5/Proximity Caves -5/Factory (discovered 2 exits: Upp x2) -5/Waste -5/Factory -5/Upper Caves -5/Upper Caves (discovered 2 exits: *Fac / *Zhi) -5/Zhirov -4/Proximity Caves -4/Factory (discovered 2 exits: [*Upp] / *Ext) -4/Extension (discovered 3 exits: *Res x2 / *Cet) -4/Cetus (discovered 2 exits: *Res / *Arc) -4/Archives (discovered 3 exits: *Res / *Hub x2) -4/Hub_04(d) (discovered 3 exits: *Res x3) -3/Research -3/Armory -3/Lab -2/Research -1/Access (discovered 1 exit: Gar) History --------- Turn | Location | Event 47 | -11/Scrapyard | Discovered new exit (range 16) 161 | -11/Scrapyard | Entered Materials 308 | -10/Materials | Build established: Mutant 458 | -10/Materials | Discovered new exit (range 3) 604 | -10/Materials | Discovered new exit (range 15) 742 | -10/Materials | Discovered new exit (range 15) 998 | -10/Materials | Learned Storage trap positions 1029 | -10/Materials | Discovered new exit (range 10) 1033 | -10/Materials | Learned location of 2 exits from Subcaves 1069 | -10/Materials | Learned 4 Subcaves zone layouts 1072 | -10/Materials | Identified exit to Subcaves 1084 | -10/Materials | Learned location of 1 exit from Recycling 1547 | -10/Materials | Entered Mines 1650 | -10/Mines | Discovered new exit (range 11) 1693 | -10/Mines | Core integrity fell below 50% 1915 | -10/Mines | Discovered new exit (range 7) 2124 | -10/Mines | Learned location of Storage (-8) 2133 | -10/Mines | Learned 2 Materials zone layouts 2455 | -10/Mines | Entered Materials 2455 | -9/Materials | Evolved 2 slots: Weapon x2 2456 | -9/Materials | Identified exit to Materials 2899 | -9/Materials | Discovered new exit (range 16) 3031 | -9/Materials | Build established: Tank 3785 | -9/Materials | Build established: Gunner 4055 | -9/Materials | First assault squad dispatched 4182 | -9/Materials | Lost 3 parts (1n2w) 4564 | -9/Materials | Discovered exit to Materials (range 4) 4898 | -9/Materials | Learned location of 1 exit from Storage 4931 | -9/Materials | Learned location of 2 exits from Materials 4980 | -9/Materials | Learned 4 Recycling zone layouts 5002 | -9/Materials | Learned 8 Materials zone layouts 5034 | -9/Materials | Learned Storage security intel 5478 | -9/Materials | Sterilization system engaged 5478 | -9/Materials | Non-combat units ordered to evacuate 5578 | -9/Materials | Combat units ordered to evacuate 5778 | -9/Materials | Ambient heat levels rising (+10) 5928 | -9/Materials | Ambient heat levels rising (+10) 5954 | -9/Materials | Entered Mines 5955 | -9/Mines | A Derelict revealed a hidden shortcut to a safe place 6013 | -9/Mines | Assembled infested the area 6457 | -9/Mines | Build established: Scavenger-Tank 6768 | -9/Mines | Discovered exit to Materials (range 5) 6802 | -9/Mines | Learned Materials garrison access intel 6840 | -9/Mines | Assisted by bots powering up and referring to "LRC-V3" 6932 | -9/Mines | Received a Mining Laser from a helpful Derelict 7083 | -9/Mines | Deemed a non-threat by the Exiles lab entrance 7083 | -9/Mines | Discovered new exit (range 5) 7461 | -9/Mines | Found a hidden stash of uninstalled traps 7534 | -9/Mines | Discovered exit to Materials (range 15) 7743 | -9/Mines | Build established: Tank 8016 | -9/Mines | Entered Exiles 8016 | -9/Exiles | Accompanied by 2 allies 8055 | -9/Exiles | Discovered new exit (range 15) 8086 | -9/Exiles | Met 8R-AWN 8124 | -9/Exiles | Met EX-HEX 8192 | -9/Exiles | Met EX-BIN 8220 | -9/Exiles | Aligned with FarCom system 8223 | -9/Exiles | Given EX-Vault access code 8283 | -9/Exiles | Opened EX-Vault 8300 | -9/Exiles | Found Superbattery 8316 | -9/Exiles | Found Firepult 8374 | -9/Exiles | Warned to stay clear of 0b10 Research branches 8453 | -9/Exiles | Met EX-DEC 8602 | -9/Exiles | Learned location of Zion (-7) 8677 | -9/Exiles | Discovered new exit (range 10) 8701 | -9/Exiles | Stole two prototypes: Firepult, Superbattery 8701 | -9/Exiles | Entered Mines 8701 | -8/Mines | Accompanied by 2 allies 8987 | -8/Mines | Build established: Skirmisher 9434 | -8/Mines | Discovered exit to Materials (range 6) 9916 | -8/Mines | Discovered exit to Materials (range 12) 9967 | -8/Mines | Entered Materials 9967 | -8/Materials | Accompanied by 1 ally 9967 | -8/Materials | Evolved 2 slots: Propulsion x1, Utility x1 9968 | -8/Materials | Identified exit to Storage 9969 | -8/Materials | Identified exit to Factory 9971 | -8/Materials | Loaded intel: 1 garrison access location 10148 | -8/Materials | Identified exit to Garrison 10148 | -8/Materials | Entered Garrison 10538 | -8/Garrison | Triggered checkpoint 10656 | -8/Garrison | Triggered checkpoint 10710 | -8/Garrison | Learned Materials security intel 10752 | -8/Garrison | Build established: Scavenger-Skirmisher 10834 | -8/Garrison | Triggered checkpoint 10898 | -8/Garrison | Triggered checkpoint 10927 | -8/Garrison | Discovered new exit (range 5) 11026 | -8/Garrison | Triggered checkpoint 11162 | -8/Garrison | Discovered new exit (range 10) 11429 | -8/Garrison | Rescued a captive Derelict 11492 | -8/Garrison | Triggered checkpoint 11658 | -8/Garrison | Triggered checkpoint 11756 | -8/Garrison | Triggered checkpoint 11766 | -8/Garrison | Discovered new exit (range 15) 11956 | -8/Garrison | Triggered checkpoint 12088 | -8/Garrison | Discovered new exit (range 10) 12878 | -8/Garrison | Garrison Relay disabled 13030 | -8/Garrison | Garrison Relay disabled 13081 | -8/Garrison | Discovered new exit (range 23) 13081 | -8/Garrison | Discovered new exit (range 59) 13081 | -8/Garrison | Discovered new exit (range 87) 13081 | -8/Garrison | Discovered new exit (range 39) 13388 | -8/Garrison | Installed Relay Interface Framework 13424 | -8/Garrison | Garrison Relay disabled 13677 | -8/Garrison | Entered Materials 14059 | -8/Materials | Discovered exit to Factory (range 5) 14373 | -8/Materials | Build established: Skirmisher 15114 | -8/Materials | Discovered exit to Factory (range 16) 16026 | -8/Materials | Discovered exit to Storage (range 16) 16153 | -8/Materials | Identified exit to Garrison 16153 | -8/Materials | Entered Garrison 16253 | -8/Garrison | Garrison Relay disabled 16271 | -8/Garrison | Triggered checkpoint 16387 | -8/Garrison | Discovered exit to Factory (range 63) 16387 | -8/Garrison | Discovered exit to Factory (range 69) 16387 | -8/Garrison | Discovered exit to Factory (range 34) 16387 | -8/Garrison | Discovered new exit (range 74) 16565 | -8/Garrison | Triggered checkpoint 16593 | -8/Garrison | Triggered checkpoint 16673 | -8/Garrison | Triggered checkpoint 16747 | -8/Garrison | Expanded RIF knowledge: Hotswap 16779 | -8/Garrison | Triggered checkpoint 16876 | -8/Garrison | Entered Factory 16876 | -7/Factory | Accompanied by 3 allies 16876 | -7/Factory | Evolved 2 slots: Propulsion x1, Utility x1 16878 | -7/Factory | FarCom data flow suspended 17178 | -7/Factory | Build established: Gunner 18168 | -7/Factory | Lost 4 parts (1n3w) 18876 | -7/Factory | First assault squad dispatched 19092 | -7/Factory | Lost 3 parts (1n1u1w) 19350 | -7/Factory | Fabricated M-13 Machinist (x1) 19401 | -7/Factory | Destroyed 7 combat bots 19408 | -7/Factory | Lost 5 parts (1p3n1w) 19472 | -7/Factory | Destroyed 7 combat bots 19712 | -7/Factory | Fabricated M-13 Machinist (x1) 20153 | -7/Factory | Discovered new exit (range 9) 20228 | -7/Factory | High security lockdown imminent 20264 | -7/Factory | Destroyed 8 combat bots 20289 | -7/Factory | Build established: Scavenger-Gunner 20308 | -7/Factory | High security lockdown engaged 20309 | -7/Factory | Core integrity fell below 50% 20488 | -7/Factory | Destroyed 7 combat bots 20508 | -7/Factory | Entered another Factory area 20508 | -6/Factory | Evolved 2 slots: Utility x1, Weapon x1 20532 | -6/Factory | Lost 4 parts (2n2w) 20625 | -6/Factory | Lost 3 parts (2n1u) 20858 | -6/Factory | First assault squad dispatched 20913 | -6/Factory | Build established: Scavenger-Mutant 20980 | -6/Factory | Discovered new exit (range 14) 21067 | -6/Factory | Entered Lower Caves 21067 | -6/Lower Caves | Spotted UN-Y32(f) 21067 | -6/Lower Caves | Spotted TJ-QRN(f) 21068 | -6/Lower Caves | Firepult stolen by Master Thief 21068 | -6/Lower Caves | Plasma Cutter stolen by Master Thief 21069 | -6/Lower Caves | Encountered a Master Thief 21069 | -6/Lower Caves | Encountered a Master Thief 21072 | -6/Lower Caves | Spotted CG-Z9M(f) 21073 | -6/Lower Caves | Encountered a Master Thief 21073 | -6/Lower Caves | Adv. Heat Sink stolen by Master Thief 21096 | -6/Lower Caves | Learned Factory stockpile data 21519 | -6/Lower Caves | System corruption reached 10% 21969 | -6/Lower Caves | Learned 4 Factory zone layouts 22225 | -6/Lower Caves | Build established: Scavenger-Gunner 22283 | -6/Lower Caves | Discovered new exit (range 2) 22347 | -6/Lower Caves | Found Alien Artifact 22347 | -6/Lower Caves | Identified Core Expander 22347 | -6/Lower Caves | Installed Core Expander, added new Power slot 22377 | -6/Lower Caves | Entered another Lower Caves area 22399 | -6/Lower Caves | Identified exit to Data Miner 22941 | -6/Lower Caves | Build established: Scavenger-Skirmisher 23126 | -6/Lower Caves | Spotted QX-ESE(f) 23127 | -6/Lower Caves | Spotted 2K-FES(f) 23128 | -6/Lower Caves | Encountered a Master Thief 23128 | -6/Lower Caves | Encountered a Master Thief 23130 | -6/Lower Caves | Superbattery stolen by Master Thief 23132 | -6/Lower Caves | Spotted KP-WK6(f) 23133 | -6/Lower Caves | Encountered a Master Thief 23134 | -6/Lower Caves | Magnetic Acceleration Cannon stolen by Master Thief 23135 | -6/Lower Caves | Hvy. Particle Cannon stolen by Master Thief 23200 | -6/Lower Caves | Learned Factory interactive machine intel 23435 | -6/Lower Caves | Build established: Scavenger-Mutant 23928 | -6/Lower Caves | Discovered new exit (range 11) 24128 | -6/Lower Caves | Build established: Scavenger-Skirmisher 24385 | -6/Lower Caves | Entered Data Miner 24387 | -6/Data Miner | Discovered new exit (range 6) 24405 | -6/Data Miner | Met Data Miner 24438 | -6/Data Miner | Acquired the access code to Warlord's prototype stash 24438 | -6/Data Miner | Learned location of Section 7 (-2) 24459 | -6/Data Miner | Received God Mode back door access code from Data Miner 24516 | -6/Data Miner | Entered Proximity Caves 24586 | -5/Proximity Caves | Spotter reported a threat 24879 | -5/Proximity Caves | Attacked by a faux Warlord 24928 | -5/Proximity Caves | Lost 3 parts (1p1u1w) 25251 | -5/Proximity Caves | Ambushed by research squad 25300 | -5/Proximity Caves | Core integrity fell below 50% 25362 | -5/Proximity Caves | Identified exit to Factory 26785 | -5/Proximity Caves | Entered Factory 26785 | -5/Factory | Evolved 2 slots: Propulsion x1, Utility x1 26786 | -5/Factory | Identified exit to Upper Caves 26788 | -5/Factory | Loaded intel: 52 interactive machine locations 27365 | -5/Factory | Lost 5 parts (1p2u2w) 27440 | -5/Factory | Spotted B-75 Beast 27491 | -5/Factory | Sucked down chute 27491 | -5/Factory | Entered Waste 27492 | -5/Waste | Joined by Warlord forces that had cleared the area 27504 | -5/Waste | Lost 7 parts (2p1n2u2w) 27780 | -5/Waste | Found Adv. Powered Armor 27798 | -5/Waste | Found Unknown Protection 27798 | -5/Waste | Identified Damper Plating 27913 | -5/Waste | Discovered new exit (range 20) 28421 | -5/Waste | Entered Factory 28421 | -5/Factory | Accompanied by 20 allies 28564 | -5/Factory | Build established: Scavenger-Tank 28658 | -5/Factory | Discovered exit to Upper Caves (range 5) 28681 | -5/Factory | Entered Upper Caves 28681 | -5/Upper Caves | Accompanied by 19 allies 28704 | -5/Upper Caves | Identified exit to Upper Caves 29163 | -5/Upper Caves | Attracted the attention of an 0b10 outpost 30109 | -5/Upper Caves | Learned Factory non-interactive machine intel 30175 | -5/Upper Caves | Entered another Upper Caves area 30175 | -5/Upper Caves | Accompanied by 20 allies 30252 | -5/Upper Caves | Discovered new exit (range 16) 30949 | -5/Upper Caves | Spotted B-75 Beast 30960 | -5/Upper Caves | Allies destroyed B-75 Beast 31124 | -5/Upper Caves | Attracted the attention of an 0b10 checkpoint 31188 | -5/Upper Caves | Discovered new exit (range 9) 32027 | -5/Upper Caves | Entered Zhirov 32027 | -5/Zhirov | Accompanied by 20 allies 32027 | -5/Zhirov | Discovered new exit (range 3) 32057 | -5/Zhirov | Met Zhirov 32133 | -5/Zhirov | Learned location of Quarantine (-2) 32133 | -5/Zhirov | Learned location of Testing (-3) 32133 | -5/Zhirov | Learned location of Command (-1) 32161 | -5/Zhirov | Zhirov requested help retrieving the SGEMP Prototype 32194 | -5/Zhirov | Found Alien Artifact 32194 | -5/Zhirov | Identified Integrated Dissipator 32194 | -5/Zhirov | Installed Integrated Dissipator, increased core heat dissipation (+20) 32296 | -5/Zhirov | Found Alien Artifact 32385 | -5/Zhirov | Entered Proximity Caves 32385 | -4/Proximity Caves | Accompanied by 20 allies 32462 | -4/Proximity Caves | Spotter reported a threat 32633 | -4/Proximity Caves | Spotter reported a threat 32659 | -4/Proximity Caves | Learned Research stockpile data 33792 | -4/Proximity Caves | Build established: Derelict-Tank 33961 | -4/Proximity Caves | Encountered a Derelict sapper outpost 34168 | -4/Proximity Caves | Discovered new exit (range 18) 34288 | -4/Proximity Caves | Entered Factory 34288 | -4/Factory | Accompanied by 21 allies 34288 | -4/Factory | Evolved 2 slots: Propulsion x1, Utility x1 34289 | -4/Factory | Identified exit to Extension 34290 | -4/Factory | Loaded intel: 216 non-interactive machine locations 34503 | -4/Factory | Garrison activated, responded to threat 34538 | -4/Factory | First assault squad dispatched 34550 | -4/Factory | Lost 4 allies 34556 | -4/Factory | Spotted B-86 Titan 34613 | -4/Factory | Lost 5 allies 34777 | -4/Factory | Incoming investigation squad redirected 34850 | -4/Factory | Discovered new exit (range 15) 34918 | -4/Factory | Build established: Scavenger-Tank 34948 | -4/Factory | Incoming investigation squad redirected 35067 | -4/Factory | Incoming assault squad redirected 35145 | -4/Factory | Entered Extension 35145 | -4/Extension | Accompanied by 8 allies 35256 | -4/Extension | Build established: Derelict-Tank 35309 | -4/Extension | Spotted B-86 Titan 35322 | -4/Extension | Allies destroyed B-86 Titan 35514 | -4/Extension | Incoming investigation squad redirected 35591 | -4/Extension | Rescued a captive Derelict 35732 | -4/Extension | Rescued a captive Derelict 35885 | -4/Extension | Rescued A7 35907 | -4/Extension | Incoming investigation squad redirected 35950 | -4/Extension | Build established: Commander-Tank 36242 | -4/Extension | Rescued a captive Derelict 36395 | -4/Extension | First assault squad dispatched 36410 | -4/Extension | Incoming assault squad redirected 36680 | -4/Extension | Spotted B-86 Titan 36693 | -4/Extension | Allies destroyed B-86 Titan 36789 | -4/Extension | Discovered new exit (range 3) 36861 | -4/Extension | Rescued a captive Derelict 36862 | -4/Extension | Rescued a captive Derelict 36924 | -4/Extension | Incoming assault squad redirected 36956 | -4/Extension | Rescued a captive Derelict 37024 | -4/Extension | Rescued a captive Derelict 37025 | -4/Extension | Rescued a captive Derelict 37080 | -4/Extension | Rescued a captive Derelict 37172 | -4/Extension | Incoming assault squad redirected 37192 | -4/Extension | Extracted ID and sensor layout for unrecognized location from A7's data core 37197 | -4/Extension | Incoming assault squad redirected 37243 | -4/Extension | Rescued a captive Derelict 37245 | -4/Extension | Lost 8 allies 37314 | -4/Extension | Discovered new exit (range 10) 37316 | -4/Extension | Discovered new exit (range 6) 37424 | -4/Extension | Disrupted transfer network 37479 | -4/Extension | Entered Cetus 37479 | -4/Cetus | Accompanied by 5 allies 37497 | -4/Cetus | Spotted Cetus Guard 37497 | -4/Cetus | Spotted Cetus Guard 37500 | -4/Cetus | Spotted Cetus Guard 37501 | -4/Cetus | Destroyed Cetus Guard 37505 | -4/Cetus | Destroyed Cetus Guard 37512 | -4/Cetus | Destroyed Cetus Guard 37513 | -4/Cetus | Spotted Cetus Guard 37525 | -4/Cetus | Allies destroyed Cetus Guard 37651 | -4/Cetus | Build established: Tank 37771 | -4/Cetus | Discovered new exit (range 19) 37809 | -4/Cetus | Spotted Cetus Guard 37809 | -4/Cetus | Spotted Cetus Guard 37815 | -4/Cetus | Spotted Cetus Guard 37820 | -4/Cetus | Destroyed Cetus Guard 37824 | -4/Cetus | Destroyed Cetus Guard 37828 | -4/Cetus | Spotted Cetus Guard 37836 | -4/Cetus | Allies destroyed Cetus Guard 37845 | -4/Cetus | Destroyed Cetus Guard 37858 | -4/Cetus | Discovered new exit (range 19) 37876 | -4/Cetus | Met Revision 17 37999 | -4/Cetus | Entered Archives 37999 | -4/Archives | Accompanied by 2 allies 38078 | -4/Archives | Discovered new exit (range 20) 38083 | -4/Archives | Unable to access archive contents 38126 | -4/Archives | Discovered new exit (range 20) 38178 | -4/Archives | Build established: Scavenger-Tank 38198 | -4/Archives | Discovered new exit (range 20) 39210 | -4/Archives | Entered Hub_04(d) 39210 | -4/Hub_04(d) | Accompanied by 1 ally 39414 | -4/Hub_04(d) | Discovered new exit (range 8) 39565 | -4/Hub_04(d) | Discovered new exit (range 5) 39669 | -4/Hub_04(d) | Discovered new exit (range 9) 39673 | -4/Hub_04(d) | Garrison activated, responded to threat 39768 | -4/Hub_04(d) | Destroyed 7 combat bots 39859 | -4/Hub_04(d) | Garrison activated, responded to threat 39947 | -4/Hub_04(d) | Lost 3 parts (1n1u1w) 39993 | -4/Hub_04(d) | First assault squad dispatched 40025 | -4/Hub_04(d) | Destroyed 13 combat bots 40037 | -4/Hub_04(d) | System corruption reached 10% 40043 | -4/Hub_04(d) | Incoming assault squad redirected 40049 | -4/Hub_04(d) | Entered Research 40049 | -3/Research | Evolved 2 slots: Utility x2 40050 | -3/Research | Identified exit to Armory 40067 | -3/Research | Lost 15 parts (1p3n7u4w) 40249 | -3/Research | Revision forces began assault on 0b10 40296 | -3/Research | Met up with Revision 17++ 40317 | -3/Research | Build established: Mutant 40392 | -3/Research | Found Unknown Protection 40392 | -3/Research | Identified Hvy. Reactive Plating 40749 | -3/Research | Research terminal network offline 41107 | -3/Research | Spotted Striker 41134 | -3/Research | Build established: Scavenger-Gunner 41370 | -3/Research | Spotted Striker 41373 | -3/Research | Spotted Executioner 41378 | -3/Research | Destroyed Striker 41767 | -3/Research | Found Prototype Device 41767 | -3/Research | Identified Exp. Sensor Array 41796 | -3/Research | Spotted Striker 41800 | -3/Research | Destroyed Striker 42021 | -3/Research | Spotted Striker 42037 | -3/Research | Spotted Striker 42059 | -3/Research | Build established: Gunner 42083 | -3/Research | Destroyed Striker 42235 | -3/Research | Entered Armory 42247 | -3/Armory | Identified Transdimensional Reconstructor 42247 | -3/Armory | Warped through subspace to slip node 42247 | -3/Armory | Discovered new exit (range 1) 42253 | -3/Armory | Entered Lab 42253 | -3/Lab | Discovered new exit (range 9) 42272 | -3/Lab | Hidden lab's door opened automatically 42272 | -3/Lab | Sensor layout match revealed 42273 | -3/Lab | Gained access to the hidden lab's interior 42282 | -3/Lab | Detected by scanners 42288 | -3/Lab | Confronted by A5 42304 | -3/Lab | System corruption reached 10% 42331 | -3/Lab | Destroyed A5 42366 | -3/Lab | Unable to decrypt terminal 42415 | -3/Lab | Found Alien Artifact 42415 | -3/Lab | Identified Core Reset Matrix 42415 | -3/Lab | Used Core Reset Matrix 42419 | -3/Lab | Sensed 3 artifacts in vicinity 42475 | -3/Lab | Discovered new exit (range 8) 42668 | -3/Lab | Found Transdimensional Reconstructor 42684 | -3/Lab | Build established: Alien-Tank 42701 | -3/Lab | Found Integrated Reactor 42701 | -3/Lab | Installed Integrated Reactor, increased core energy generation (+10) 42720 | -3/Lab | Found Core Regenerator 42804 | -3/Lab | Unable to decrypt terminal 42869 | -3/Lab | Unable to decrypt terminal 42988 | -3/Lab | Build established: Alien-Gunner 43004 | -3/Lab | Found Prototype Hackware 43004 | -3/Lab | Identified Quantum Router 43011 | -3/Lab | Found Prototype Protection 43011 | -3/Lab | Identified Med. Regenerative Plating 43016 | -3/Lab | Found Prototype Energy Cannon 43016 | -3/Lab | Identified Warp Cannon 43022 | -3/Lab | Found Warp Cannon 43288 | -3/Lab | Build established: Hacker-Gunner 43327 | -3/Lab | Unable to decrypt terminal 43330 | -3/Lab | Found LC Capacitor 43383 | -3/Lab | Found Prototype Special Weapon 43422 | -3/Lab | Entered Research 43422 | -2/Research | Evolved 2 slots: Utility x1, Weapon x1 43476 | -2/Research | Incoming investigation squad redirected 43784 | -2/Research | Build established: Alien-Executioner 44009 | -2/Research | Destroyed 7 combat bots 44024 | -2/Research | Identified Gui. Remote Datajack 44032 | -2/Research | Intercept squad dispatched 44062 | -2/Research | Spotted Tracker 44062 | -2/Research | Spotted Tracker 44064 | -2/Research | Destroyed Tracker 44074 | -2/Research | Destroyed Tracker 44092 | -2/Research | Spotted Combat Programmer 44093 | -2/Research | Destroyed Combat Programmer 44129 | -2/Research | Spotted Combat Programmer 44151 | -2/Research | Destroyed Combat Programmer 44210 | -2/Research | First assault squad dispatched 44235 | -2/Research | Incoming assault squad redirected 44333 | -2/Research | Incoming assault squad redirected 44378 | -2/Research | Build established: Scavenger-Executioner 44390 | -2/Research | Destroyed 8 combat bots 44752 | -2/Research | System corruption reached 10% 44804 | -2/Research | Intercept squad dispatched 44814 | -2/Research | Spotted Tracker 44815 | -2/Research | Spotted Tracker 44823 | -2/Research | Destroyed Tracker 44831 | -2/Research | Destroyed Tracker 44862 | -2/Research | Spotted Combat Programmer 44871 | -2/Research | Destroyed Combat Programmer 44874 | -2/Research | Spotted Combat Programmer 44886 | -2/Research | Destroyed Combat Programmer 44938 | -2/Research | Incoming assault squad redirected 45009 | -2/Research | Incoming assault squad redirected 45011 | -2/Research | Warped through subspace 45042 | -2/Research | Lost 13 parts (1p4n3u5w) 45580 | -2/Research | Found Prototype Processor 45580 | -2/Research | Identified Exp. Signal Interpreter 45584 | -2/Research | Found Exp. Signal Interpreter 45853 | -2/Research | Incoming assault squad redirected 45857 | -2/Research | Incoming assault squad redirected 45908 | -2/Research | Destroyed 7 combat bots 45911 | -2/Research | Intercept squad dispatched 45919 | -2/Research | Lost 5 parts (1p2u2w) 45935 | -2/Research | Spotted Tracker 45936 | -2/Research | Spotted Tracker 45943 | -2/Research | Destroyed Tracker 45946 | -2/Research | Incoming assault squad redirected 45953 | -2/Research | Destroyed Tracker 45963 | -2/Research | System corruption reached 30% 45975 | -2/Research | Spotted Combat Programmer 45995 | -2/Research | Spotted Combat Programmer 45998 | -2/Research | Core integrity fell below 50% 46003 | -2/Research | Emitted hypermatrix ping 46008 | -2/Research | Assembled emerged from beneath the floor 46013 | -2/Research | Core integrity fell below 20% 46017 | -2/Research | Allies destroyed Combat Programmer 46038 | -2/Research | Lost 25 parts (2p6n9u8w) 46054 | -2/Research | Lost 5 allies 46098 | -2/Research | Used Core Regenerator, restored core integrity (+362) 46110 | -2/Research | Discovered new exit (range 16) 46125 | -2/Research | Identified exit to Access 46125 | -2/Research | Entered Access 46125 | -1/Access | Evolved 2 slots: Propulsion x2 46152 | -1/Access | Lost 12 parts (2p8n2w) 46229 | -1/Access | Build established: Alien-Mutant 46348 | -1/Access | Spotted B-99 Colossus 46365 | -1/Access | Identified exit to Garrison 46375 | -1/Access | First assault squad dispatched 46402 | -1/Access | Incoming assault squad redirected 46489 | -1/Access | Lost 7 parts (4n3u) 46496 | -1/Access | Energy Cycler disabled 46507 | -1/Access | Spotted B-99 Colossus 46508 | -1/Access | Spotted B-99 Colossus 46510 | -1/Access | Core integrity fell below 50% 46531 | -1/Access | Emitted hypermatrix ping 46536 | -1/Access | Assembled emerged from beneath the floor 46556 | -1/Access | Lost 7 parts (6n1u) 46567 | -1/Access | Intercept squad dispatched 46576 | -1/Access | Assembled emerged from beneath the floor 46579 | -1/Access | Lost 4 allies 46595 | -1/Access | Spotted Tracker 46599 | -1/Access | Spotted Tracker 46618 | -1/Access | Core integrity fell below 20% 46642 | -1/Access | Lost 7 allies 46649 | -1/Access | Lost 3 parts (3n) 46659 | -1/Access | Search patrols dispatched 46671 | -1/Access | Destroyed by G-73 Enforcer with Phase Gun Last Messages --------------- 46617_ Myomer Leg destroyed. 46617_ Tracker Prototype Flight Unit temporarily disabled. 46617_ Penetrated by Slug. 46618_ Myomer Leg destroyed. 46625_ ALERT: Rogue bot located, Programmers report to Access Zone 4D. 46629_ Acquired Unknown Treads. 46629_ Identified Hvy. Siege Treads. 46650_ Centrium Wheel destroyed. 46654_ Connecting with Terminal... 46656_ Acquired Adv. Medium Treads. 46656_ Cmb. Antigrav System destroyed. 46659_ ALERT: Heightened foreign activity detected, multiple search patrols dispatched. 46668_ C-30 ARC bursts open, deploying its payload. 46668_ G-73 Enforcer unfolds itself. 46670_ Hvy. Siege Treads destroyed. 46670_ Com. Battery destroyed. 46671_ Adv. Medium Treads destroyed. [Achievement: 40k Club] [Achievement: 50k Club] [Achievement: Overachiever] Map ----- +----------------------------------------------------+ | ??????????#######??# + " #????????# ## | | ???????????????????# ##########????????# ## = | | ???????????????????# #???###???????????# ## = | | ?????????########### #???= ???????????# ## | | ?????????# ] # #??? ???????????? + | | ?????????# ]] !# #??? ????????????# ## | | ?????????#* # #??? ????????????? ## | | ?????????# # #??? ]????????????? ?###### | | ?????????# ""T"" # #??? ]????????????????????? | | ?????????# """"" + #??? ]????????????????????? | | ?????????# # #??? ????????????????????? | | ?????????# ! # #??? ????????????????????? | | ?????????########### #####+########+#####???????? | | ??????????????????# ???????? | | ??????????????????# ??????? | | ??????????????????# ??????? | | ??????????????????# p ??????? | | ??????????????????# ####/######### ???????? | | ??????????????????# #! #???????????????? | | ??????????????????# # p ]#???????????????? | | ??????????????????# # " #???????????????? | | ??????????????????# # s""" #???????????????? | | ??????????????????# # """ #???????????????? | | ??????????????????# # " #???????????????? | | ??????????????????# ggg s g####????????????? | | ??????????????????# # @ gg%g ?????? | | ??????????????????# ############## ????? | | ??????????????????# ??????????????????? ?????? | | ??????????????????? ??????????????????????????? | | ?????????????????????????????????????????????????? | | ?????????????????????????????????????????????????? | | ?????????????????????????????????????????????????? | | ?????????????????????????????????????????????????? | | ?????????????????????????????????????????????????? | | ?????????????????????????????????????????????????? | | ?????????????????????????????????????????????????? | | ?????????????????????????????????????????????????? | | ?????????????????????????????????????????????????? | | ?????????????????????????????????????????????????? | | ?????????????????????????????????????????????????? | | ?????????????????????????????????????????????????? | | ?????????????????????????????????????????????????? | | ?????????????????????????????????????????????????? | | ?????????????????????????????????????????????????? | | ?????????????????????????????????????????????????? | | ?????????????????????????????????????????????????? | | ?????????????????????????????????????????????????? | | ?????????????????????????????????????????????????? | | ?????????????????????????????????????????????????? | | ?????????????????????????????????????????????????? | +----------------------------------------------------+ Best States ------------- Heat Dissipation 159 Coolant Potential 80 Energy Generation 55 Energy Capacity 1325 Matter Stores 300 Matter Capacity 300 Sight Range 22 Robot Scan Range 20 Terrain Scan Density 10 ECM Strength 2 Jamming Range 16 Base Temperature (-) 200 Corruption Block 14 Armor Coverage 2000 Resistance: KI 40 Resistance: TH 20 Resistance: EM 90 Propulsion Shielding 90 Point Defense Rating 240 Weapon Cycling 25 Phase Shifting 5 Evasion (%) 62 Targeting Accuracy 16 Launcher Accuracy 40 Target Analysis 11 Core Analysis 6 Recoil Reduction 6 Particle Charging 25 Kinecelleration 30 Offensive Hacking 10 Defensive Hacking 25 Relay Coupler Types 1 Relay Coupler Value 32 Authchip Count 1 Item Schematics ----------------- None Robot Schematics ------------------ None Fabricated ------------ M-13 Machinist | x1 | -7/Factory M-13 Machinist | x1 | -7/Factory Alien Tech Used ----------------- Core Expander Integrated Dissipator Transdimensional Reconstructor Core Reset Matrix Integrated Reactor LC Capacitor Core Regenerator Achievements -------------- 40k Club 50k Club Alien Roots Anyone Home? Beloved Denied? Knowing Is Half The Battle Ooh, Shiny! Overachiever Pyromaniac Revolutionary Research Rockin' Loadout Turtlemind Ultimate Loadout Challenges ------------ None Game ------ Seed ResetCloakingMicroactuators Manual? 0 Play Time 07:38:32 Cumulative 79.8 hours Start 2024.09.09 @ 16:32:57 End 2024.09.10 @ 02:22:58 Sessions 9 Manual Loads 0 Difficulty Rogue Special Mode None Game No. 42 Rogue 42 Adventurer 0 Explorer 0 Win Type - Total 0 Types 0/0/0/0/0/0/0/0/0 Lore% 41 Gallery% 59 Achievement% 50 Wizard Run 0 Options --------- Layout 0 ASCII 0 Keyboard 0 Movement Mouse Keybinds 0 Fullscreen 1 Font 24/Smallcaps Map View 183x50 Zoom Use 0% Tactical HUD 1 Map Filters NONE Filters NONE Steam 0 RUN: c4d75e93-1cbf-412e-93c7-df2891aea57e